{"text_format":"1","workbook":"xlsx","n_sheets":8,"sheets":["تجهيز  1","تجهيز2 ","تجهيز   3","تجهيز4 ","تجهيز  5 ","تجهيز  6  ","مكافآت","خصومات"],"not_rendered":{"charts":0,"images":0,"macros":1,"external_links":1,"defined_names":26,"comments":0,"pivot_tables":0},"unopened":[],"bounds":{"document_bytes":16777216,"sheet_cells":100000,"rows_first":2000,"rows_last":500,"rows_between":2000,"halvings":0,"cell_chars":16384,"cell_head_chars":4096},"cells_cut":0,"cells_raw":0,"read":"whole","date_system":"1900"}

{"sheet":"تجهيز  1","index":0,"n_rows":75,"n_cols":38,"rows_kept":75,"cut":false,"hidden":false,"merged":[[0,0,0,2],[71,34,71,35],[72,34,72,35]]}
[{"$f":"[1]المجاميع!C2","v":"2023-08-01"},null,null,null,"مكافآت و خصميات الانتاج شهر   ",null,null,null,null,null,null,null,null,null,null,null,null,null,null,null,null,null,null,null,{"$f":"E3","v":"التجهيــــــــــــــــــز 2"},null,null,null,null,null,null,null,null,null,null,null,null,"P"]
["Sl.","الجنسية","File.","Name of the employees","اسماء العاملين",1,2,3,4,5,6,7,8,9,10,11,12,13,14,15,16,17,18,19,20,21,22,23,24,25,26,27,28,29,30,31,"المجموع"]
[null,null,null,"NEW FINISHING 2","التجهيــــــــــــــــــز 2",null,null,null,null,null,null,null,null,null,null,null,null,null,null,null,null,null,null,null,null,null,null,null,null,null,null,null,null,null,null,null,{"$f":"SUM(F3:AJ3)","v":0},{"$f":"E3","v":"التجهيــــــــــــــــــز 2"}]
[{"$f":"ROW()-3","v":1},"INDIAN",668,"Abul Qasim Totomian","خالد",10,-10,null,null,null,10,-10,null,null,null,null,null,null,-10,null,-10,null,null,null,null,null,null,null,10,null,10,null,null,null,null,-10,{"$f":"SUM(F$4:AJ$4)","v":-10},{"$f":"IF(C4=\"\",\"\",C4)","v":668}]
[2,"Bangali",669,"Habeeb Rahman","فيصل",null,10,null,null,null,10,null,10,10,null,null,null,null,null,10,null,10,null,null,null,10,null,10,null,null,10,null,null,null,null,10,{"$f":"SUM(F5:AJ5)","v":100},{"$f":"IF(C5=\"\",\"\",C5)","v":669}]
[3,"Indian",916,"Jamal Miah Jalaluddin","هاني",null,null,null,null,null,null,null,null,null,null,null,null,null,null,null,null,null,null,null,null,null,null,null,null,null,null,null,null,null,null,null,0,916]
[4,"Indian",994,"Shaik Abdu Hashim","سلطان",null,null,null,null,10,null,-10,10,null,null,null,10,null,null,null,null,null,null,null,null,null,null,-10,10,null,null,-10,null,10,10,null,30,994]
[5,"Bangali",1224,"LATIF SURUJMIAH","احمد 1",null,null,10,null,null,null,-10,null,null,null,null,null,null,null,null,null,null,null,null,null,null,null,10,10,null,null,-10,null,null,null,10,20,1224]
[6,"Indian",1350,"Mohd. Iqbal.Rafeeq Islam","احمد 2",10,10,null,null,10,10,-10,null,null,null,null,null,null,-10,10,null,null,null,null,null,null,null,null,10,null,-10,-20,null,null,null,-20,-10,1350]
[7,"INDIAN",2251,"Alamin ali patoar","احمد 3",null,null,null,null,null,null,null,null,null,null,null,null,null,null,null,null,null,null,null,null,null,null,null,null,null,null,null,null,null,null,null,0,2251]
[8,"INDIAN",2532,"Buddhadeb madhusudan paramanik","احمد 4",null,10,10,null,null,10,10,null,null,null,null,null,10,null,null,null,10,null,null,null,null,10,null,null,null,null,null,null,null,10,null,80,2532]
[9,"Nepali",2555,"DIPESH KUMAR BISHWAKARMA","مصطفى ",null,null,null,null,null,null,null,null,null,null,null,null,null,null,null,null,null,null,null,null,null,null,-15,null,-10,null,null,null,null,null,null,-25,2555]
[10,"INDIAN",2556,"Dipankar nitai ghosh","هثيم",10,null,10,null,null,null,null,10,null,10,null,null,10,null,10,null,10,null,null,null,null,10,-10,null,null,10,-10,null,null,null,null,70,2556]
[11,"INDIAN",2557,"Kalyan kailash mandal","وائل",null,null,null,null,null,null,null,null,null,null,null,null,null,null,null,null,null,null,null,null,null,null,null,null,null,null,null,null,null,null,null,0,2557]
[12,"INDIAN",2558,"Nishiprovat krishna chandra manna","خالد سعيد",null,null,null,null,null,null,null,null,null,null,null,null,null,null,null,null,null,null,null,null,null,null,-16,null,-15,null,null,null,null,null,null,-31,2558]
[13,"INDIAN",2584,"susanta dulal chandra jara",null,10,null,10,null,null,10,null,null,null,10,null,10,null,-10,10,null,null,null,null,null,10,10,null,10,null,10,-10,null,10,null,10,100,2584]
[14,"Nepali",null,null,null,null,null,null,null,null,null,null,null,null,null,null,null,null,null,null,null,null,null,null,null,null,null,null,null,null,null,null,null,null,null,null,null,""]
[15,"INDIAN",null,null,null,null,null,null,null,null,null,null,null,null,null,null,null,null,null,null,null,null,null,null,null,null,null,null,null,null,null,null,null,null,null,null,null,""]
[16,"INDIAN",null,null,null,null,null,null,null,null,null,null,null,null,null,null,null,null,null,null,null,null,null,null,null,null,null,null,null,null,null,null,null,null,null,null,null,""]
[17,"Indian",null,null,null,null,null,null,null,null,null,null,null,null,null,null,null,null,null,null,null,null,null,null,null,null,null,null,null,null,null,null,null,null,null,null,null,""]
[18,null,null,null,null,null,null,null,null,null,null,null,null,null,null,null,null,null,null,null,null,null,null,null,null,null,null,null,null,null,null,null,null,null,null,null,null,""]
[19,"INDIAN",null,null,null,null,null,null,null,null,null,null,null,null,null,null,null,null,null,null,null,null,null,null,null,null,null,null,null,null,null,null,null,null,null,null,null,""]
[20,"Nepali",null,null,null,null,null,null,null,null,null,null,null,null,null,null,null,null,null,null,null,null,null,null,null,null,null,null,null,null,null,null,null,null,null,null,null,""]
[21,"Nepali",null,null,null,null,null,null,null,null,null,null,null,null,null,null,null,null,null,null,null,null,null,null,null,null,null,null,null,null,null,null,null,null,null,null,null,""]
[22,"Nepali",null,null,null,null,null,null,null,null,null,null,null,null,null,null,null,null,null,null,null,null,null,null,null,null,null,null,null,null,null,null,null,null,null,null,null,""]
[23,"Nepali",null,null,null,null,null,null,null,null,null,null,null,null,null,null,null,null,null,null,null,null,null,null,null,null,null,null,null,null,null,null,null,null,null,null,null,""]
[24,"Nepali",null,null,null,null,null,null,null,null,null,null,null,null,null,null,null,null,null,null,null,null,null,null,null,null,null,null,null,null,null,null,null,null,null,null,null,""]
[25,"Nepali",null,null,null,null,null,null,null,null,null,null,null,null,null,null,null,null,null,null,null,null,null,null,null,null,null,null,null,null,null,null,null,null,null,null,null,""]
[26,null,null,null,null,null,null,null,null,null,null,null,null,null,null,null,null,null,null,null,null,null,null,null,null,null,null,null,null,null,null,null,null,null,null,null,null,""]
[27,"Nepali",null,null,null,null,null,null,null,null,null,null,null,null,null,null,null,null,null,null,null,null,null,null,null,null,null,null,null,null,null,null,null,null,null,null,null,""]
[28,"Nepali",null,null,null,null,null,null,null,null,null,null,null,null,null,null,null,null,null,null,null,null,null,null,null,null,null,null,null,null,null,null,null,null,null,null,null,""]
[29,"Nepali",null,null,null,null,null,null,null,null,null,null,null,null,null,null,null,null,null,null,null,null,null,null,null,null,null,null,null,null,null,null,null,null,null,null,null,""]
[30,"INDIAN",null,null,null,null,null,null,null,null,null,null,null,null,null,null,null,null,null,null,null,null,null,null,null,null,null,null,null,null,null,null,null,null,null,null,null,""]
[31,"INDIAN",null,null,null,null,null,null,null,null,null,null,null,null,null,null,null,null,null,null,null,null,null,null,null,null,null,null,null,null,null,null,null,null,null,null,null,""]
[32,"INDIAN",null,null,null,null,null,null,null,null,null,null,null,null,null,null,null,null,null,null,null,null,null,null,null,null,null,null,null,null,null,null,null,null,null,null,null,""]
[33,null,null,null,null,null,null,null,null,null,null,null,null,null,null,null,null,null,null,null,null,null,null,null,null,null,null,null,null,null,null,null,null,null,null,null,null,""]
[34,"Nepali",null,null,null,null,null,null,null,null,null,null,null,null,null,null,null,null,null,null,null,null,null,null,null,null,null,null,null,null,null,null,null,null,null,null,null,""]
[35,"Nepali",null,null,null,null,null,null,null,null,null,null,null,null,null,null,null,null,null,null,null,null,null,null,null,null,null,null,null,null,null,null,null,null,null,null,null,""]
[36,"Nepali",null,null,null,null,null,null,null,null,null,null,null,null,null,null,null,null,null,null,null,null,null,null,null,null,null,null,null,null,null,null,null,null,null,null,null,""]
[37,"INDIAN",null,null,null,null,null,null,null,null,null,null,null,null,null,null,null,null,null,null,null,null,null,null,null,null,null,null,null,null,null,null,null,null,null,null,null,""]
[38,"INDIAN",null,null,null,null,null,null,null,null,null,null,null,null,null,null,null,null,null,null,null,null,null,null,null,null,null,null,null,null,null,null,null,null,null,null,null,""]
[39,"INDIAN",null,null,null,null,null,null,null,null,null,null,null,null,null,null,null,null,null,null,null,null,null,null,null,null,null,null,null,null,null,null,null,null,null,null,null,""]
[40,"INDIAN",null,null,null,null,null,null,null,null,null,null,null,null,null,null,null,null,null,null,null,null,null,null,null,null,null,null,null,null,null,null,null,null,null,null,null,""]
[41,"Bangali",null,null,null,null,null,null,null,null,null,null,null,null,null,null,null,null,null,null,null,null,null,null,null,null,null,null,null,null,null,null,null,null,null,null,null,""]
[42,"Bangali",null,null,null,null,null,null,null,null,null,null,null,null,null,null,null,null,null,null,null,null,null,null,null,null,null,null,null,null,null,null,null,null,null,null,null,""]
[43,"Bangali",null,null,null,null,null,null,null,null,null,null,null,null,null,null,null,null,null,null,null,null,null,null,null,null,null,null,null,null,null,null,null,null,null,null,null,""]
[44,"Bangali",null,null,null,null,null,null,null,null,null,null,null,null,null,null,null,null,null,null,null,null,null,null,null,null,null,null,null,null,null,null,null,null,null,null,null,""]
[45,"Bangali",null,null,null,null,null,null,null,null,null,null,null,null,null,null,null,null,null,null,null,null,null,null,null,null,null,null,null,null,null,null,null,null,null,null,null,""]
[46,"Bangali",null,null,null,null,null,null,null,null,null,null,null,null,null,null,null,null,null,null,null,null,null,null,null,null,null,null,null,null,null,null,null,null,null,null,null,""]
[47,"Bangali",null,null,null,null,null,null,null,null,null,null,null,null,null,null,null,null,null,null,null,null,null,null,null,null,null,null,null,null,null,null,null,null,null,null,null,""]
[48,"Bangali",null,null,null,null,null,null,null,null,null,null,null,null,null,null,null,null,null,null,null,null,null,null,null,null,null,null,null,null,null,null,null,null,null,null,null,""]
[49,null,null,null,null,null,null,null,null,null,null,null,null,null,null,null,null,null,null,null,null,null,null,null,null,null,null,null,null,null,null,null,null,null,null,null,null,""]
[50,"INDIAN",null,null,null,null,null,null,null,null,null,null,null,null,null,null,null,null,null,null,null,null,null,null,null,null,null,null,null,null,null,null,null,null,null,null,null,""]
[51,"INDIAN",null,null,null,null,null,null,null,null,null,null,null,null,null,null,null,null,null,null,null,null,null,null,null,null,null,null,null,null,null,null,null,null,null,null,null,""]
[52,"INDIAN",null,null,null,null,null,null,null,null,null,null,null,null,null,null,null,null,null,null,null,null,null,null,null,null,null,null,null,null,null,null,null,null,null,null,null,""]
[53,"INDIAN",null,null,null,null,null,null,null,null,null,null,null,null,null,null,null,null,null,null,null,null,null,null,null,null,null,null,null,null,null,null,null,null,null,null,null,""]
[54,"INDIAN",null,null,null,null,null,null,null,null,null,null,null,null,null,null,null,null,null,null,null,null,null,null,null,null,null,null,null,null,null,null,null,null,null,null,null,""]
[55,null,null,null,null,null,null,null,null,null,null,null,null,null,null,null,null,null,null,null,null,null,null,null,null,null,null,null,null,null,null,null,null,null,null,null,null,""]
[56,null,null,null,null,null,null,null,null,null,null,null,null,null,null,null,null,null,null,null,null,null,null,null,null,null,null,null,null,null,null,null,null,null,null,null,null,""]
[57,null,null,null,null,null,null,null,null,null,null,null,null,null,null,null,null,null,null,null,null,null,null,null,null,null,null,null,null,null,null,null,null,null,null,null,null,""]
[58,null,null,null,null,null,null,null,null,null,null,null,null,null,null,null,null,null,null,null,null,null,null,null,null,null,null,null,null,null,null,null,null,null,null,null,null,""]
[{"$f":"ROW()-3","v":59},null,null,null,null,null,null,null,null,null,null,null,null,null,null,null,null,null,null,null,null,null,null,null,null,null,null,null,null,null,null,null,null,null,null,null,null,""]
[60,null,null,null,null,null,null,null,null,null,null,null,null,null,null,null,null,null,null,null,null,null,null,null,null,null,null,null,null,null,null,null,null,null,null,null,null,{"$f":"IF(C63=\"\",\"\",C63)","v":""}]
[61,null,null,null,null,null,null,null,null,null,null,null,null,null,null,null,null,null,null,null,null,null,null,null,null,null,null,null,null,null,null,null,null,null,null,null,null,""]
[62,null,null,null,null,null,null,null,null,null,null,null,null,null,null,null,null,null,null,null,null,null,null,null,null,null,null,null,null,null,null,null,null,null,null,null,null,""]
[63,null,null,null,null,null,null,null,null,null,null,null,null,null,null,null,null,null,null,null,null,null,null,null,null,null,null,null,null,null,null,null,null,null,null,null,null,""]
[null,null,null,null,null,null,null,null,null,null,null,null,null,null,null,null,null,null,null,null,null,null,null,null,null,null,null,null,null,null,null,null,null,null,null,null,null,""]
[{"$f":"ROW()-3","v":65},null,null,null,null,null,null,null,null,null,null,null,null,null,null,null,null,null,null,null,null,null,null,null,null,null,null,null,null,null,null,null,null,null,null,null,null,""]
[null,"الــــــــــــــــــــــمـــــــــــــــــــــــــــــــــــجــــــــــــــــــــــــــــــــــــــمــــــــــــــــــــــــــــــــــــــــــــوع",null,null,"المجموع",{"$f":"SUM(F3:F61)","v":40},20,40,0,20,50,-30,30,10,20,0,20,20,-30,40,-10,30,0,0,0,20,30,-31,50,-25,30,-60,0,20,20,0,{"$f":"SUM(F69:AJ69)","v":324}]
[]
[]
[null,null,null,null,null,null,null,null,null,null,null,null,null,null,null,null,null,null,null,null,null,null,null,null,null,null,null,null,null,null,null,null,null,null,"مجموع المكافات",null,{"$f":"SUMIF(AK4:AK68,\">=0\")","v":400}]
[null,null,null,null,null,null,null,null,null,null,null,null,null,null,null,null,null,null,null,null,null,null,null,null,null,null,null,null,null,null,null,null,null,null,"مجموع الخصميات",null,{"$f":"SUMIF(AK4:AK68,\"<=0\")","v":-76}]
[null,null,null,null,{"$f":"[1]المجاميع!C2","v":"2023-08-01"},{"$f":"E74","v":"2023-08-01"},{"$f":"F74+1","v":"2023-08-02"},{"$f":"G74+1","v":"2023-08-03"},"2023-08-04","2023-08-05","2023-08-06","2023-08-07","2023-08-08","2023-08-09","2023-08-10","2023-08-11","2023-08-12","2023-08-13","2023-08-14","2023-08-15","2023-08-16","2023-08-17","2023-08-18","2023-08-19","2023-08-20","2023-08-21","2023-08-22","2023-08-23","2023-08-24","2023-08-25","2023-08-26","2023-08-27","2023-08-28","2023-08-29","2023-08-30","2023-08-31"]
[null,null,null,null,null,{"$f":"TEXT(F74,\"DDD\")","v":"Tue"},{"$f":"TEXT(G74,\"DDD\")","v":"Wed"},"Thu","Fri","Sat","Sun","Mon","Tue","Wed","Thu","Fri","Sat","Sun",{"$f":"TEXT(S74,\"DDD\")","v":"Mon"},"Tue","Wed","Thu","Fri",{"$f":"TEXT(X74,\"DDD\")","v":"Sat"},"Sun","Mon","Tue","Wed","Thu","Fri","Sat","Sun","Mon","Tue","Wed","Thu"]

{"sheet":"تجهيز2 ","index":1,"n_rows":75,"n_cols":38,"rows_kept":75,"cut":false,"hidden":false,"merged":[[0,0,0,2],[71,34,71,35],[72,34,72,35]]}
[{"$f":"[1]المجاميع!C2","v":"2023-08-01"},null,null,null,"مكافآت و خصميات الانتاج شهر   ",null,null,null,null,null,null,null,null,null,null,null,null,null,null,null,null,null,null,null,{"$f":"E3","v":"التجهيــــــــــــــــــز 2"},null,null,null,null,null,null,null,null,null,null,null,null,"P"]
["Sl.","الجنسية","File.","Name of the employees","اسماء العاملين",1,2,3,4,5,6,7,8,9,10,11,12,13,14,15,16,17,18,19,20,21,22,23,24,25,26,27,28,29,30,31,"المجموع"]
[null,null,null,"NEW FINISHING 2","التجهيــــــــــــــــــز 2",null,null,null,null,null,null,null,null,null,null,null,null,null,null,null,null,null,null,null,null,null,null,null,null,null,null,null,null,null,null,null,{"$f":"SUM(F3:AJ3)","v":0},{"$f":"E3","v":"التجهيــــــــــــــــــز 2"}]
[{"$f":"ROW()-3","v":1},"INDIAN",668,"Abul Qasim Totomian","خالد",10,-10,null,null,null,10,-10,null,null,null,null,null,null,-10,null,-10,null,null,null,null,null,null,null,10,null,10,null,null,null,null,-10,{"$f":"SUM(F$4:AJ$4)","v":-10},{"$f":"IF(C4=\"\",\"\",C4)","v":668}]
[2,"Bangali",669,"Habeeb Rahman","فيصل",null,10,null,null,null,10,null,10,10,null,null,null,null,null,10,null,10,null,null,null,10,null,10,null,null,10,null,null,null,null,10,{"$f":"SUM(F5:AJ5)","v":100},{"$f":"IF(C5=\"\",\"\",C5)","v":669}]
[3,"Indian",916,"Jamal Miah Jalaluddin","هاني",null,null,null,null,null,null,null,null,null,null,null,null,null,null,null,null,null,null,null,null,null,null,null,null,null,null,null,null,null,null,null,0,916]
[4,"Indian",994,"Shaik Abdu Hashim","سلطان",null,null,null,null,10,null,-10,10,null,null,null,10,null,null,null,null,null,null,null,null,null,null,-10,10,null,null,-10,null,10,10,null,30,994]
[5,"Bangali",1224,"LATIF SURUJMIAH","احمد 1",null,null,10,null,null,null,-10,null,null,null,null,null,null,null,null,null,null,null,null,null,null,null,10,10,null,null,-10,null,null,null,10,20,1224]
[6,"Indian",1350,"Mohd. Iqbal.Rafeeq Islam","احمد 2",10,10,null,null,10,10,-10,null,null,null,null,null,null,-10,10,null,null,null,null,null,null,null,null,10,null,-10,-20,null,null,null,-20,-10,1350]
[7,"INDIAN",2251,"Alamin ali patoar","احمد 3",null,null,null,null,null,null,null,null,null,null,null,null,null,null,null,null,null,null,null,null,null,null,null,null,null,null,null,null,null,null,null,0,2251]
[8,"INDIAN",2532,"Buddhadeb madhusudan paramanik","احمد 4",null,10,10,null,null,10,10,null,null,null,null,null,10,null,null,null,10,null,null,null,null,10,null,null,null,null,null,null,null,10,null,80,2532]
[9,"Nepali",2555,"DIPESH KUMAR BISHWAKARMA","مصطفى ",null,null,null,null,null,null,null,null,null,null,null,null,null,null,null,null,null,null,null,null,null,null,-15,null,-10,null,null,null,null,null,null,-25,2555]
[10,"INDIAN",2556,"Dipankar nitai ghosh","هثيم",10,null,10,null,null,null,null,10,null,10,null,null,10,null,10,null,10,null,null,null,null,10,-10,null,null,10,-10,null,null,null,null,70,2556]
[11,"INDIAN",2557,"Kalyan kailash mandal","وائل",null,null,null,null,null,null,null,null,null,null,null,null,null,null,null,null,null,null,null,null,null,null,null,null,null,null,null,null,null,null,null,0,2557]
[12,"INDIAN",2558,"Nishiprovat krishna chandra manna","خالد سعيد",null,null,null,null,null,null,null,null,null,null,null,null,null,null,null,null,null,null,null,null,null,null,-16,null,-15,null,null,null,null,null,null,-31,2558]
[13,"INDIAN",2584,"susanta dulal chandra jara","مصطفى ",10,null,10,null,null,10,null,null,null,10,null,10,null,-10,10,null,null,null,null,null,10,10,null,10,null,10,-10,null,10,null,10,100,2584]
[14,"Nepali",null,null,null,null,null,null,null,null,null,null,null,null,null,null,null,null,null,null,null,null,null,null,null,null,null,null,null,null,null,null,null,null,null,null,null,""]
[15,"INDIAN",null,null,null,null,null,null,null,null,null,null,null,null,null,null,null,null,null,null,null,null,null,null,null,null,null,null,null,null,null,null,null,null,null,null,null,""]
[16,"INDIAN",null,null,null,null,null,null,null,null,null,null,null,null,null,null,null,null,null,null,null,null,null,null,null,null,null,null,null,null,null,null,null,null,null,null,null,""]
[17,"Indian",null,null,null,null,null,null,null,null,null,null,null,null,null,null,null,null,null,null,null,null,null,null,null,null,null,null,null,null,null,null,null,null,null,null,null,""]
[18,null,null,null,null,null,null,null,null,null,null,null,null,null,null,null,null,null,null,null,null,null,null,null,null,null,null,null,null,null,null,null,null,null,null,null,null,""]
[19,"INDIAN",null,null,null,null,null,null,null,null,null,null,null,null,null,null,null,null,null,null,null,null,null,null,null,null,null,null,null,null,null,null,null,null,null,null,null,""]
[20,"Nepali",null,null,null,null,null,null,null,null,null,null,null,null,null,null,null,null,null,null,null,null,null,null,null,null,null,null,null,null,null,null,null,null,null,null,null,""]
[21,"Nepali",null,null,null,null,null,null,null,null,null,null,null,null,null,null,null,null,null,null,null,null,null,null,null,null,null,null,null,null,null,null,null,null,null,null,null,""]
[22,"Nepali",null,null,null,null,null,null,null,null,null,null,null,null,null,null,null,null,null,null,null,null,null,null,null,null,null,null,null,null,null,null,null,null,null,null,null,""]
[23,"Nepali",null,null,null,null,null,null,null,null,null,null,null,null,null,null,null,null,null,null,null,null,null,null,null,null,null,null,null,null,null,null,null,null,null,null,null,""]
[24,"Nepali",null,null,null,null,null,null,null,null,null,null,null,null,null,null,null,null,null,null,null,null,null,null,null,null,null,null,null,null,null,null,null,null,null,null,null,""]
[25,"Nepali",null,null,null,null,null,null,null,null,null,null,null,null,null,null,null,null,null,null,null,null,null,null,null,null,null,null,null,null,null,null,null,null,null,null,null,""]
[26,null,null,null,null,null,null,null,null,null,null,null,null,null,null,null,null,null,null,null,null,null,null,null,null,null,null,null,null,null,null,null,null,null,null,null,null,""]
[27,"Nepali",null,null,null,null,null,null,null,null,null,null,null,null,null,null,null,null,null,null,null,null,null,null,null,null,null,null,null,null,null,null,null,null,null,null,null,""]
[28,"Nepali",null,null,null,null,null,null,null,null,null,null,null,null,null,null,null,null,null,null,null,null,null,null,null,null,null,null,null,null,null,null,null,null,null,null,null,""]
[29,"Nepali",null,null,null,null,null,null,null,null,null,null,null,null,null,null,null,null,null,null,null,null,null,null,null,null,null,null,null,null,null,null,null,null,null,null,null,""]
[30,"INDIAN",null,null,null,null,null,null,null,null,null,null,null,null,null,null,null,null,null,null,null,null,null,null,null,null,null,null,null,null,null,null,null,null,null,null,null,""]
[31,"INDIAN",null,null,null,null,null,null,null,null,null,null,null,null,null,null,null,null,null,null,null,null,null,null,null,null,null,null,null,null,null,null,null,null,null,null,null,""]
[32,"INDIAN",null,null,null,null,null,null,null,null,null,null,null,null,null,null,null,null,null,null,null,null,null,null,null,null,null,null,null,null,null,null,null,null,null,null,null,""]
[33,null,null,null,null,null,null,null,null,null,null,null,null,null,null,null,null,null,null,null,null,null,null,null,null,null,null,null,null,null,null,null,null,null,null,null,null,""]
[34,"Nepali",null,null,null,null,null,null,null,null,null,null,null,null,null,null,null,null,null,null,null,null,null,null,null,null,null,null,null,null,null,null,null,null,null,null,null,""]
[35,"Nepali",null,null,null,null,null,null,null,null,null,null,null,null,null,null,null,null,null,null,null,null,null,null,null,null,null,null,null,null,null,null,null,null,null,null,null,""]
[36,"Nepali",null,null,null,null,null,null,null,null,null,null,null,null,null,null,null,null,null,null,null,null,null,null,null,null,null,null,null,null,null,null,null,null,null,null,null,""]
[37,"INDIAN",null,null,null,null,null,null,null,null,null,null,null,null,null,null,null,null,null,null,null,null,null,null,null,null,null,null,null,null,null,null,null,null,null,null,null,""]
[38,"INDIAN",null,null,null,null,null,null,null,null,null,null,null,null,null,null,null,null,null,null,null,null,null,null,null,null,null,null,null,null,null,null,null,null,null,null,null,""]
[39,"INDIAN",null,null,null,null,null,null,null,null,null,null,null,null,null,null,null,null,null,null,null,null,null,null,null,null,null,null,null,null,null,null,null,null,null,null,null,""]
[40,"INDIAN",null,null,null,null,null,null,null,null,null,null,null,null,null,null,null,null,null,null,null,null,null,null,null,null,null,null,null,null,null,null,null,null,null,null,null,""]
[41,"Bangali",null,null,null,null,null,null,null,null,null,null,null,null,null,null,null,null,null,null,null,null,null,null,null,null,null,null,null,null,null,null,null,null,null,null,null,""]
[42,"Bangali",null,null,null,null,null,null,null,null,null,null,null,null,null,null,null,null,null,null,null,null,null,null,null,null,null,null,null,null,null,null,null,null,null,null,null,""]
[43,"Bangali",null,null,null,null,null,null,null,null,null,null,null,null,null,null,null,null,null,null,null,null,null,null,null,null,null,null,null,null,null,null,null,null,null,null,null,""]
[44,"Bangali",null,null,null,null,null,null,null,null,null,null,null,null,null,null,null,null,null,null,null,null,null,null,null,null,null,null,null,null,null,null,null,null,null,null,null,""]
[45,"Bangali",null,null,null,null,null,null,null,null,null,null,null,null,null,null,null,null,null,null,null,null,null,null,null,null,null,null,null,null,null,null,null,null,null,null,null,""]
[46,"Bangali",null,null,null,null,null,null,null,null,null,null,null,null,null,null,null,null,null,null,null,null,null,null,null,null,null,null,null,null,null,null,null,null,null,null,null,""]
[47,"Bangali",null,null,null,null,null,null,null,null,null,null,null,null,null,null,null,null,null,null,null,null,null,null,null,null,null,null,null,null,null,null,null,null,null,null,null,""]
[48,"Bangali",null,null,null,null,null,null,null,null,null,null,null,null,null,null,null,null,null,null,null,null,null,null,null,null,null,null,null,null,null,null,null,null,null,null,null,""]
[49,null,null,null,null,null,null,null,null,null,null,null,null,null,null,null,null,null,null,null,null,null,null,null,null,null,null,null,null,null,null,null,null,null,null,null,null,""]
[50,"INDIAN",null,null,null,null,null,null,null,null,null,null,null,null,null,null,null,null,null,null,null,null,null,null,null,null,null,null,null,null,null,null,null,null,null,null,null,""]
[51,"INDIAN",null,null,null,null,null,null,null,null,null,null,null,null,null,null,null,null,null,null,null,null,null,null,null,null,null,null,null,null,null,null,null,null,null,null,null,""]
[52,"INDIAN",null,null,null,null,null,null,null,null,null,null,null,null,null,null,null,null,null,null,null,null,null,null,null,null,null,null,null,null,null,null,null,null,null,null,null,""]
[53,"INDIAN",null,null,null,null,null,null,null,null,null,null,null,null,null,null,null,null,null,null,null,null,null,null,null,null,null,null,null,null,null,null,null,null,null,null,null,""]
[54,"INDIAN",null,null,null,null,null,null,null,null,null,null,null,null,null,null,null,null,null,null,null,null,null,null,null,null,null,null,null,null,null,null,null,null,null,null,null,""]
[55,null,null,null,null,null,null,null,null,null,null,null,null,null,null,null,null,null,null,null,null,null,null,null,null,null,null,null,null,null,null,null,null,null,null,null,null,""]
[56,null,null,null,null,null,null,null,null,null,null,null,null,null,null,null,null,null,null,null,null,null,null,null,null,null,null,null,null,null,null,null,null,null,null,null,null,""]
[57,null,null,null,null,null,null,null,null,null,null,null,null,null,null,null,null,null,null,null,null,null,null,null,null,null,null,null,null,null,null,null,null,null,null,null,null,""]
[58,null,null,null,null,null,null,null,null,null,null,null,null,null,null,null,null,null,null,null,null,null,null,null,null,null,null,null,null,null,null,null,null,null,null,null,null,""]
[{"$f":"ROW()-3","v":59},null,null,null,null,null,null,null,null,null,null,null,null,null,null,null,null,null,null,null,null,null,null,null,null,null,null,null,null,null,null,null,null,null,null,null,null,""]
[60,null,null,null,null,null,null,null,null,null,null,null,null,null,null,null,null,null,null,null,null,null,null,null,null,null,null,null,null,null,null,null,null,null,null,null,null,{"$f":"IF(C63=\"\",\"\",C63)","v":""}]
[61,null,null,null,null,null,null,null,null,null,null,null,null,null,null,null,null,null,null,null,null,null,null,null,null,null,null,null,null,null,null,null,null,null,null,null,null,""]
[62,null,null,null,null,null,null,null,null,null,null,null,null,null,null,null,null,null,null,null,null,null,null,null,null,null,null,null,null,null,null,null,null,null,null,null,null,""]
[63,null,null,null,null,null,null,null,null,null,null,null,null,null,null,null,null,null,null,null,null,null,null,null,null,null,null,null,null,null,null,null,null,null,null,null,null,""]
[null,null,null,null,null,null,null,null,null,null,null,null,null,null,null,null,null,null,null,null,null,null,null,null,null,null,null,null,null,null,null,null,null,null,null,null,null,""]
[{"$f":"ROW()-3","v":65},null,null,null,null,null,null,null,null,null,null,null,null,null,null,null,null,null,null,null,null,null,null,null,null,null,null,null,null,null,null,null,null,null,null,null,null,""]
[null,"الــــــــــــــــــــــمـــــــــــــــــــــــــــــــــــجــــــــــــــــــــــــــــــــــــــمــــــــــــــــــــــــــــــــــــــــــــوع",null,null,"المجموع",{"$f":"SUM(F3:F61)","v":40},20,40,0,20,50,-30,30,10,20,0,20,20,-30,40,-10,30,0,0,0,20,30,-31,50,-25,30,-60,0,20,20,0,{"$f":"SUM(F69:AJ69)","v":324}]
[]
[]
[null,null,null,null,null,null,null,null,null,null,null,null,null,null,null,null,null,null,null,null,null,null,null,null,null,null,null,null,null,null,null,null,null,null,"مجموع المكافات",null,{"$f":"SUMIF(AK4:AK68,\">=0\")","v":400}]
[null,null,null,null,null,null,null,null,null,null,null,null,null,null,null,null,null,null,null,null,null,null,null,null,null,null,null,null,null,null,null,null,null,null,"مجموع الخصميات",null,{"$f":"SUMIF(AK4:AK68,\"<=0\")","v":-76}]
[null,null,null,null,{"$f":"[1]المجاميع!C2","v":"2023-08-01"},{"$f":"E74","v":"2023-08-01"},{"$f":"F74+1","v":"2023-08-02"},{"$f":"G74+1","v":"2023-08-03"},"2023-08-04","2023-08-05","2023-08-06","2023-08-07","2023-08-08","2023-08-09","2023-08-10","2023-08-11","2023-08-12","2023-08-13","2023-08-14","2023-08-15","2023-08-16","2023-08-17","2023-08-18","2023-08-19","2023-08-20","2023-08-21","2023-08-22","2023-08-23","2023-08-24","2023-08-25","2023-08-26","2023-08-27","2023-08-28","2023-08-29","2023-08-30","2023-08-31"]
[null,null,null,null,null,{"$f":"TEXT(F74,\"DDD\")","v":"Tue"},{"$f":"TEXT(G74,\"DDD\")","v":"Wed"},"Thu","Fri","Sat","Sun","Mon","Tue","Wed","Thu","Fri","Sat","Sun",{"$f":"TEXT(S74,\"DDD\")","v":"Mon"},"Tue","Wed","Thu","Fri",{"$f":"TEXT(X74,\"DDD\")","v":"Sat"},"Sun","Mon","Tue","Wed","Thu","Fri","Sat","Sun","Mon","Tue","Wed","Thu"]

{"sheet":"تجهيز   3","index":2,"n_rows":75,"n_cols":38,"rows_kept":75,"cut":false,"hidden":false,"merged":[[0,0,0,2],[71,34,71,35],[72,34,72,35]]}
[{"$f":"[1]المجاميع!C2","v":"2023-08-01"},null,null,null,"مكافآت و خصميات الانتاج شهر   ",null,null,null,null,null,null,null,null,null,null,null,null,null,null,null,null,null,null,null,{"$f":"E3","v":"التجهيــــــــــــــــــز 2"},null,null,null,null,null,null,null,null,null,null,null,null,"P"]
["Sl.","الجنسية","File.","Name of the employees","اسماء العاملين",1,2,3,4,5,6,7,8,9,10,11,12,13,14,15,16,17,18,19,20,21,22,23,24,25,26,27,28,29,30,31,"المجموع"]
[null,null,null,"NEW FINISHING 2","التجهيــــــــــــــــــز 2",null,null,null,null,null,null,null,null,null,null,null,null,null,null,null,null,null,null,null,null,null,null,null,null,null,null,null,null,null,null,null,{"$f":"SUM(F3:AJ3)","v":0},{"$f":"E3","v":"التجهيــــــــــــــــــز 2"}]
[{"$f":"ROW()-3","v":1},"INDIAN",668,"Abul Qasim Totomian","خالد",10,-10,null,null,null,10,-10,null,null,null,null,null,null,-10,null,-10,null,null,null,null,null,null,null,10,null,10,null,null,null,null,-10,{"$f":"SUM(F$4:AJ$4)","v":-10},{"$f":"IF(C4=\"\",\"\",C4)","v":668}]
[2,"Bangali",669,"Habeeb Rahman","فيصل",null,10,null,null,null,10,null,10,10,null,null,null,null,null,10,null,10,null,null,null,10,null,10,null,null,10,null,null,null,null,10,{"$f":"SUM(F5:AJ5)","v":100},{"$f":"IF(C5=\"\",\"\",C5)","v":669}]
[3,"Indian",916,"Jamal Miah Jalaluddin","هاني",null,null,null,null,null,null,null,null,null,null,null,null,null,null,null,null,null,null,null,null,null,null,null,null,null,null,null,null,null,null,null,0,916]
[4,"Indian",994,"Shaik Abdu Hashim","سلطان",null,null,null,null,10,null,-10,10,null,null,null,10,null,null,null,null,null,null,null,null,null,null,-10,10,null,null,-10,null,10,10,null,30,994]
[5,"Bangali",1224,"LATIF SURUJMIAH","احمد 1",null,null,10,null,null,null,-10,null,null,null,null,null,null,null,null,null,null,null,null,null,null,null,10,10,null,null,-10,null,null,null,10,20,1224]
[6,"Indian",1350,"Mohd. Iqbal.Rafeeq Islam","احمد 2",10,10,null,null,10,10,-10,null,null,null,null,null,null,-10,10,null,null,null,null,null,null,null,null,10,null,-10,-20,null,null,null,-20,-10,1350]
[7,"INDIAN",2251,"Alamin ali patoar","احمد 3",null,null,null,null,null,null,null,null,null,null,null,null,null,null,null,null,null,null,null,null,null,null,null,null,null,null,null,null,null,null,null,0,2251]
[8,"INDIAN",2532,"Buddhadeb madhusudan paramanik","احمد 4",null,10,10,null,null,10,10,null,null,null,null,null,10,null,null,null,10,null,null,null,null,10,null,null,null,null,null,null,null,10,null,80,2532]
[9,"Nepali",2555,"DIPESH KUMAR BISHWAKARMA","مصطفى ",null,null,null,null,null,null,null,null,null,null,null,null,null,null,null,null,null,null,null,null,null,null,-15,null,-10,null,null,null,null,null,null,-25,2555]
[10,"INDIAN",2556,"Dipankar nitai ghosh","هثيم",10,null,10,null,null,null,null,10,null,10,null,null,10,null,10,null,10,null,null,null,null,10,-10,null,null,10,-10,null,null,null,null,70,2556]
[11,"INDIAN",2557,"Kalyan kailash mandal","وائل",null,null,null,null,null,null,null,null,null,null,null,null,null,null,null,null,null,null,null,null,null,null,null,null,null,null,null,null,null,null,null,0,2557]
[12,"INDIAN",2558,"Nishiprovat krishna chandra manna","خالد سعيد",null,null,null,null,null,null,null,null,null,null,null,null,null,null,null,null,null,null,null,null,null,null,-16,null,-15,null,null,null,null,null,null,-31,2558]
[13,"INDIAN",2584,"susanta dulal chandra jara",null,10,null,10,null,null,10,null,null,null,10,null,10,null,-10,10,null,null,null,null,null,10,10,null,10,null,10,-10,null,10,null,10,100,2584]
[14,"Nepali",null,null,null,null,null,null,null,null,null,null,null,null,null,null,null,null,null,null,null,null,null,null,null,null,null,null,null,null,null,null,null,null,null,null,null,""]
[15,"INDIAN",null,null,null,null,null,null,null,null,null,null,null,null,null,null,null,null,null,null,null,null,null,null,null,null,null,null,null,null,null,null,null,null,null,null,null,""]
[16,"INDIAN",null,null,null,null,null,null,null,null,null,null,null,null,null,null,null,null,null,null,null,null,null,null,null,null,null,null,null,null,null,null,null,null,null,null,null,""]
[17,"Indian",null,null,null,null,null,null,null,null,null,null,null,null,null,null,null,null,null,null,null,null,null,null,null,null,null,null,null,null,null,null,null,null,null,null,null,""]
[18,null,null,null,null,null,null,null,null,null,null,null,null,null,null,null,null,null,null,null,null,null,null,null,null,null,null,null,null,null,null,null,null,null,null,null,null,""]
[19,"INDIAN",null,null,null,null,null,null,null,null,null,null,null,null,null,null,null,null,null,null,null,null,null,null,null,null,null,null,null,null,null,null,null,null,null,null,null,""]
[20,"Nepali",null,null,null,null,null,null,null,null,null,null,null,null,null,null,null,null,null,null,null,null,null,null,null,null,null,null,null,null,null,null,null,null,null,null,null,""]
[21,"Nepali",null,null,null,null,null,null,null,null,null,null,null,null,null,null,null,null,null,null,null,null,null,null,null,null,null,null,null,null,null,null,null,null,null,null,null,""]
[22,"Nepali",null,null,null,null,null,null,null,null,null,null,null,null,null,null,null,null,null,null,null,null,null,null,null,null,null,null,null,null,null,null,null,null,null,null,null,""]
[23,"Nepali",null,null,null,null,null,null,null,null,null,null,null,null,null,null,null,null,null,null,null,null,null,null,null,null,null,null,null,null,null,null,null,null,null,null,null,""]
[24,"Nepali",null,null,null,null,null,null,null,null,null,null,null,null,null,null,null,null,null,null,null,null,null,null,null,null,null,null,null,null,null,null,null,null,null,null,null,""]
[25,"Nepali",null,null,null,null,null,null,null,null,null,null,null,null,null,null,null,null,null,null,null,null,null,null,null,null,null,null,null,null,null,null,null,null,null,null,null,""]
[26,null,null,null,null,null,null,null,null,null,null,null,null,null,null,null,null,null,null,null,null,null,null,null,null,null,null,null,null,null,null,null,null,null,null,null,null,""]
[27,"Nepali",null,null,null,null,null,null,null,null,null,null,null,null,null,null,null,null,null,null,null,null,null,null,null,null,null,null,null,null,null,null,null,null,null,null,null,""]
[28,"Nepali",null,null,null,null,null,null,null,null,null,null,null,null,null,null,null,null,null,null,null,null,null,null,null,null,null,null,null,null,null,null,null,null,null,null,null,""]
[29,"Nepali",null,null,null,null,null,null,null,null,null,null,null,null,null,null,null,null,null,null,null,null,null,null,null,null,null,null,null,null,null,null,null,null,null,null,null,""]
[30,"INDIAN",null,null,null,null,null,null,null,null,null,null,null,null,null,null,null,null,null,null,null,null,null,null,null,null,null,null,null,null,null,null,null,null,null,null,null,""]
[31,"INDIAN",null,null,null,null,null,null,null,null,null,null,null,null,null,null,null,null,null,null,null,null,null,null,null,null,null,null,null,null,null,null,null,null,null,null,null,""]
[32,"INDIAN",null,null,null,null,null,null,null,null,null,null,null,null,null,null,null,null,null,null,null,null,null,null,null,null,null,null,null,null,null,null,null,null,null,null,null,""]
[33,null,null,null,null,null,null,null,null,null,null,null,null,null,null,null,null,null,null,null,null,null,null,null,null,null,null,null,null,null,null,null,null,null,null,null,null,""]
[34,"Nepali",null,null,null,null,null,null,null,null,null,null,null,null,null,null,null,null,null,null,null,null,null,null,null,null,null,null,null,null,null,null,null,null,null,null,null,""]
[35,"Nepali",null,null,null,null,null,null,null,null,null,null,null,null,null,null,null,null,null,null,null,null,null,null,null,null,null,null,null,null,null,null,null,null,null,null,null,""]
[36,"Nepali",null,null,null,null,null,null,null,null,null,null,null,null,null,null,null,null,null,null,null,null,null,null,null,null,null,null,null,null,null,null,null,null,null,null,null,""]
[37,"INDIAN",null,null,null,null,null,null,null,null,null,null,null,null,null,null,null,null,null,null,null,null,null,null,null,null,null,null,null,null,null,null,null,null,null,null,null,""]
[38,"INDIAN",null,null,null,null,null,null,null,null,null,null,null,null,null,null,null,null,null,null,null,null,null,null,null,null,null,null,null,null,null,null,null,null,null,null,null,""]
[39,"INDIAN",null,null,null,null,null,null,null,null,null,null,null,null,null,null,null,null,null,null,null,null,null,null,null,null,null,null,null,null,null,null,null,null,null,null,null,""]
[40,"INDIAN",null,null,null,null,null,null,null,null,null,null,null,null,null,null,null,null,null,null,null,null,null,null,null,null,null,null,null,null,null,null,null,null,null,null,null,""]
[41,"Bangali",null,null,null,null,null,null,null,null,null,null,null,null,null,null,null,null,null,null,null,null,null,null,null,null,null,null,null,null,null,null,null,null,null,null,null,""]
[42,"Bangali",null,null,null,null,null,null,null,null,null,null,null,null,null,null,null,null,null,null,null,null,null,null,null,null,null,null,null,null,null,null,null,null,null,null,null,""]
[43,"Bangali",null,null,null,null,null,null,null,null,null,null,null,null,null,null,null,null,null,null,null,null,null,null,null,null,null,null,null,null,null,null,null,null,null,null,null,""]
[44,"Bangali",null,null,null,null,null,null,null,null,null,null,null,null,null,null,null,null,null,null,null,null,null,null,null,null,null,null,null,null,null,null,null,null,null,null,null,""]
[45,"Bangali",null,null,null,null,null,null,null,null,null,null,null,null,null,null,null,null,null,null,null,null,null,null,null,null,null,null,null,null,null,null,null,null,null,null,null,""]
[46,"Bangali",null,null,null,null,null,null,null,null,null,null,null,null,null,null,null,null,null,null,null,null,null,null,null,null,null,null,null,null,null,null,null,null,null,null,null,""]
[47,"Bangali",null,null,null,null,null,null,null,null,null,null,null,null,null,null,null,null,null,null,null,null,null,null,null,null,null,null,null,null,null,null,null,null,null,null,null,""]
[48,"Bangali",null,null,null,null,null,null,null,null,null,null,null,null,null,null,null,null,null,null,null,null,null,null,null,null,null,null,null,null,null,null,null,null,null,null,null,""]
[49,null,null,null,null,null,null,null,null,null,null,null,null,null,null,null,null,null,null,null,null,null,null,null,null,null,null,null,null,null,null,null,null,null,null,null,null,""]
[50,"INDIAN",null,null,null,null,null,null,null,null,null,null,null,null,null,null,null,null,null,null,null,null,null,null,null,null,null,null,null,null,null,null,null,null,null,null,null,""]
[51,"INDIAN",null,null,null,null,null,null,null,null,null,null,null,null,null,null,null,null,null,null,null,null,null,null,null,null,null,null,null,null,null,null,null,null,null,null,null,""]
[52,"INDIAN",null,null,null,null,null,null,null,null,null,null,null,null,null,null,null,null,null,null,null,null,null,null,null,null,null,null,null,null,null,null,null,null,null,null,null,""]
[53,"INDIAN",null,null,null,null,null,null,null,null,null,null,null,null,null,null,null,null,null,null,null,null,null,null,null,null,null,null,null,null,null,null,null,null,null,null,null,""]
[54,"INDIAN",null,null,null,null,null,null,null,null,null,null,null,null,null,null,null,null,null,null,null,null,null,null,null,null,null,null,null,null,null,null,null,null,null,null,null,""]
[55,null,null,null,null,null,null,null,null,null,null,null,null,null,null,null,null,null,null,null,null,null,null,null,null,null,null,null,null,null,null,null,null,null,null,null,null,""]
[56,null,null,null,null,null,null,null,null,null,null,null,null,null,null,null,null,null,null,null,null,null,null,null,null,null,null,null,null,null,null,null,null,null,null,null,null,""]
[57,null,null,null,null,null,null,null,null,null,null,null,null,null,null,null,null,null,null,null,null,null,null,null,null,null,null,null,null,null,null,null,null,null,null,null,null,""]
[58,null,null,null,null,null,null,null,null,null,null,null,null,null,null,null,null,null,null,null,null,null,null,null,null,null,null,null,null,null,null,null,null,null,null,null,null,""]
[{"$f":"ROW()-3","v":59},null,null,null,null,null,null,null,null,null,null,null,null,null,null,null,null,null,null,null,null,null,null,null,null,null,null,null,null,null,null,null,null,null,null,null,null,""]
[60,null,null,null,null,null,null,null,null,null,null,null,null,null,null,null,null,null,null,null,null,null,null,null,null,null,null,null,null,null,null,null,null,null,null,null,null,{"$f":"IF(C63=\"\",\"\",C63)","v":""}]
[61,null,null,null,null,null,null,null,null,null,null,null,null,null,null,null,null,null,null,null,null,null,null,null,null,null,null,null,null,null,null,null,null,null,null,null,null,""]
[62,null,null,null,null,null,null,null,null,null,null,null,null,null,null,null,null,null,null,null,null,null,null,null,null,null,null,null,null,null,null,null,null,null,null,null,null,""]
[63,null,null,null,null,null,null,null,null,null,null,null,null,null,null,null,null,null,null,null,null,null,null,null,null,null,null,null,null,null,null,null,null,null,null,null,null,""]
[null,null,null,null,null,null,null,null,null,null,null,null,null,null,null,null,null,null,null,null,null,null,null,null,null,null,null,null,null,null,null,null,null,null,null,null,null,""]
[{"$f":"ROW()-3","v":65},null,null,null,null,null,null,null,null,null,null,null,null,null,null,null,null,null,null,null,null,null,null,null,null,null,null,null,null,null,null,null,null,null,null,null,null,""]
[null,"الــــــــــــــــــــــمـــــــــــــــــــــــــــــــــــجــــــــــــــــــــــــــــــــــــــمــــــــــــــــــــــــــــــــــــــــــــوع",null,null,"المجموع",{"$f":"SUM(F3:F61)","v":40},20,40,0,20,50,-30,30,10,20,0,20,20,-30,40,-10,30,0,0,0,20,30,-31,50,-25,30,-60,0,20,20,0,{"$f":"SUM(F69:AJ69)","v":324}]
[]
[]
[null,null,null,null,null,null,null,null,null,null,null,null,null,null,null,null,null,null,null,null,null,null,null,null,null,null,null,null,null,null,null,null,null,null,"مجموع المكافات",null,{"$f":"SUMIF(AK4:AK68,\">=0\")","v":400}]
[null,null,null,null,null,null,null,null,null,null,null,null,null,null,null,null,null,null,null,null,null,null,null,null,null,null,null,null,null,null,null,null,null,null,"مجموع الخصميات",null,{"$f":"SUMIF(AK4:AK68,\"<=0\")","v":-76}]
[null,null,null,null,{"$f":"[1]المجاميع!C2","v":"2023-08-01"},{"$f":"E74","v":"2023-08-01"},{"$f":"F74+1","v":"2023-08-02"},{"$f":"G74+1","v":"2023-08-03"},"2023-08-04","2023-08-05","2023-08-06","2023-08-07","2023-08-08","2023-08-09","2023-08-10","2023-08-11","2023-08-12","2023-08-13","2023-08-14","2023-08-15","2023-08-16","2023-08-17","2023-08-18","2023-08-19","2023-08-20","2023-08-21","2023-08-22","2023-08-23","2023-08-24","2023-08-25","2023-08-26","2023-08-27","2023-08-28","2023-08-29","2023-08-30","2023-08-31"]
[null,null,null,null,null,{"$f":"TEXT(F74,\"DDD\")","v":"Tue"},{"$f":"TEXT(G74,\"DDD\")","v":"Wed"},"Thu","Fri","Sat","Sun","Mon","Tue","Wed","Thu","Fri","Sat","Sun",{"$f":"TEXT(S74,\"DDD\")","v":"Mon"},"Tue","Wed","Thu","Fri",{"$f":"TEXT(X74,\"DDD\")","v":"Sat"},"Sun","Mon","Tue","Wed","Thu","Fri","Sat","Sun","Mon","Tue","Wed","Thu"]

{"sheet":"تجهيز4 ","index":3,"n_rows":75,"n_cols":38,"rows_kept":75,"cut":false,"hidden":false,"merged":[[0,0,0,2],[71,34,71,35],[72,34,72,35]]}
[{"$f":"[1]المجاميع!C2","v":"2023-08-01"},null,null,null,"مكافآت و خصميات الانتاج شهر   ",null,null,null,null,null,null,null,null,null,null,null,null,null,null,null,null,null,null,null,{"$f":"E3","v":"التجهيــــــــــــــــــز 2"},null,null,null,null,null,null,null,null,null,null,null,null,"P"]
["Sl.","الجنسية","File.","Name of the employees","اسماء العاملين",1,2,3,4,5,6,7,8,9,10,11,12,13,14,15,16,17,18,19,20,21,22,23,24,25,26,27,28,29,30,31,"المجموع"]
[null,null,null,"NEW FINISHING 2","التجهيــــــــــــــــــز 2",null,null,null,null,null,null,null,null,null,null,null,null,null,null,null,null,null,null,null,null,null,null,null,null,null,null,null,null,null,null,null,{"$f":"SUM(F3:AJ3)","v":0},{"$f":"E3","v":"التجهيــــــــــــــــــز 2"}]
[{"$f":"ROW()-3","v":1},"INDIAN",668,"Abul Qasim Totomian","خالد",10,-10,null,null,null,10,-10,null,null,null,null,null,null,-10,null,-10,null,null,null,null,null,null,null,10,null,10,null,null,null,null,-10,{"$f":"SUM(F$4:AJ$4)","v":-10},{"$f":"IF(C4=\"\",\"\",C4)","v":668}]
[2,"Bangali",669,"Habeeb Rahman","فيصل",null,10,null,null,null,10,null,10,10,null,null,null,null,null,10,null,10,null,null,null,10,null,10,null,null,10,null,null,null,null,10,{"$f":"SUM(F5:AJ5)","v":100},{"$f":"IF(C5=\"\",\"\",C5)","v":669}]
[3,"Indian",916,"Jamal Miah Jalaluddin","هاني",null,null,null,null,null,null,null,null,null,null,null,null,null,null,null,null,null,null,null,null,null,null,null,null,null,null,null,null,null,null,null,0,916]
[4,"Indian",994,"Shaik Abdu Hashim","سلطان",null,null,null,null,10,null,-10,10,null,null,null,10,null,null,null,null,null,null,null,null,null,null,-10,10,null,null,-10,null,10,10,null,30,994]
[5,"Bangali",1224,"LATIF SURUJMIAH","احمد 1",null,null,10,null,null,null,-10,null,null,null,null,null,null,null,null,null,null,null,null,null,null,null,10,10,null,null,-10,null,null,null,10,20,1224]
[6,"Indian",1350,"Mohd. Iqbal.Rafeeq Islam","احمد 2",10,10,null,null,10,10,-10,null,null,null,null,null,null,-10,10,null,null,null,null,null,null,null,null,10,null,-10,-20,null,null,null,-20,-10,1350]
[7,"INDIAN",2251,"Alamin ali patoar","احمد 3",null,null,null,null,null,null,null,null,null,null,null,null,null,null,null,null,null,null,null,null,null,null,null,null,null,null,null,null,null,null,null,0,2251]
[8,"INDIAN",2532,"Buddhadeb madhusudan paramanik","احمد 4",null,10,10,null,null,10,10,null,null,null,null,null,10,null,null,null,10,null,null,null,null,10,null,null,null,null,null,null,null,10,null,80,2532]
[9,"Nepali",2555,"DIPESH KUMAR BISHWAKARMA","مصطفى ",null,null,null,null,null,null,null,null,null,null,null,null,null,null,null,null,null,null,null,null,null,null,-15,null,-10,null,null,null,null,null,null,-25,2555]
[10,"INDIAN",2556,"Dipankar nitai ghosh","هثيم",10,null,10,null,null,null,null,10,null,10,null,null,10,null,10,null,10,null,null,null,null,10,-10,null,null,10,-10,null,null,null,null,70,2556]
[11,"INDIAN",2557,"Kalyan kailash mandal","وائل",null,null,null,null,null,null,null,null,null,null,null,null,null,null,null,null,null,null,null,null,null,null,null,null,null,null,null,null,null,null,null,0,2557]
[12,"INDIAN",2558,"Nishiprovat krishna chandra manna","خالد سعيد",null,null,null,null,null,null,null,null,null,null,null,null,null,null,null,null,null,null,null,null,null,null,-16,null,-15,null,null,null,null,null,null,-31,2558]
[13,"INDIAN",2584,"susanta dulal chandra jara","مصطفى ",10,null,10,null,null,10,null,null,null,10,null,10,null,-10,10,null,null,null,null,null,10,10,null,10,null,10,-10,null,10,null,10,100,2584]
[14,"Nepali",null,null,null,null,null,null,null,null,null,null,null,null,null,null,null,null,null,null,null,null,null,null,null,null,null,null,null,null,null,null,null,null,null,null,null,""]
[15,"INDIAN",null,null,null,null,null,null,null,null,null,null,null,null,null,null,null,null,null,null,null,null,null,null,null,null,null,null,null,null,null,null,null,null,null,null,null,""]
[16,"INDIAN",null,null,null,null,null,null,null,null,null,null,null,null,null,null,null,null,null,null,null,null,null,null,null,null,null,null,null,null,null,null,null,null,null,null,null,""]
[17,"Indian",null,null,null,null,null,null,null,null,null,null,null,null,null,null,null,null,null,null,null,null,null,null,null,null,null,null,null,null,null,null,null,null,null,null,null,""]
[18,null,null,null,null,null,null,null,null,null,null,null,null,null,null,null,null,null,null,null,null,null,null,null,null,null,null,null,null,null,null,null,null,null,null,null,null,""]
[19,"INDIAN",null,null,null,null,null,null,null,null,null,null,null,null,null,null,null,null,null,null,null,null,null,null,null,null,null,null,null,null,null,null,null,null,null,null,null,""]
[20,"Nepali",null,null,null,null,null,null,null,null,null,null,null,null,null,null,null,null,null,null,null,null,null,null,null,null,null,null,null,null,null,null,null,null,null,null,null,""]
[21,"Nepali",null,null,null,null,null,null,null,null,null,null,null,null,null,null,null,null,null,null,null,null,null,null,null,null,null,null,null,null,null,null,null,null,null,null,null,""]
[22,"Nepali",null,null,null,null,null,null,null,null,null,null,null,null,null,null,null,null,null,null,null,null,null,null,null,null,null,null,null,null,null,null,null,null,null,null,null,""]
[23,"Nepali",null,null,null,null,null,null,null,null,null,null,null,null,null,null,null,null,null,null,null,null,null,null,null,null,null,null,null,null,null,null,null,null,null,null,null,""]
[24,"Nepali",null,null,null,null,null,null,null,null,null,null,null,null,null,null,null,null,null,null,null,null,null,null,null,null,null,null,null,null,null,null,null,null,null,null,null,""]
[25,"Nepali",null,null,null,null,null,null,null,null,null,null,null,null,null,null,null,null,null,null,null,null,null,null,null,null,null,null,null,null,null,null,null,null,null,null,null,""]
[26,null,null,null,null,null,null,null,null,null,null,null,null,null,null,null,null,null,null,null,null,null,null,null,null,null,null,null,null,null,null,null,null,null,null,null,null,""]
[27,"Nepali",null,null,null,null,null,null,null,null,null,null,null,null,null,null,null,null,null,null,null,null,null,null,null,null,null,null,null,null,null,null,null,null,null,null,null,""]
[28,"Nepali",null,null,null,null,null,null,null,null,null,null,null,null,null,null,null,null,null,null,null,null,null,null,null,null,null,null,null,null,null,null,null,null,null,null,null,""]
[29,"Nepali",null,null,null,null,null,null,null,null,null,null,null,null,null,null,null,null,null,null,null,null,null,null,null,null,null,null,null,null,null,null,null,null,null,null,null,""]
[30,"INDIAN",null,null,null,null,null,null,null,null,null,null,null,null,null,null,null,null,null,null,null,null,null,null,null,null,null,null,null,null,null,null,null,null,null,null,null,""]
[31,"INDIAN",null,null,null,null,null,null,null,null,null,null,null,null,null,null,null,null,null,null,null,null,null,null,null,null,null,null,null,null,null,null,null,null,null,null,null,""]
[32,"INDIAN",null,null,null,null,null,null,null,null,null,null,null,null,null,null,null,null,null,null,null,null,null,null,null,null,null,null,null,null,null,null,null,null,null,null,null,""]
[33,null,null,null,null,null,null,null,null,null,null,null,null,null,null,null,null,null,null,null,null,null,null,null,null,null,null,null,null,null,null,null,null,null,null,null,null,""]
[34,"Nepali",null,null,null,null,null,null,null,null,null,null,null,null,null,null,null,null,null,null,null,null,null,null,null,null,null,null,null,null,null,null,null,null,null,null,null,""]
[35,"Nepali",null,null,null,null,null,null,null,null,null,null,null,null,null,null,null,null,null,null,null,null,null,null,null,null,null,null,null,null,null,null,null,null,null,null,null,""]
[36,"Nepali",null,null,null,null,null,null,null,null,null,null,null,null,null,null,null,null,null,null,null,null,null,null,null,null,null,null,null,null,null,null,null,null,null,null,null,""]
[37,"INDIAN",null,null,null,null,null,null,null,null,null,null,null,null,null,null,null,null,null,null,null,null,null,null,null,null,null,null,null,null,null,null,null,null,null,null,null,""]
[38,"INDIAN",null,null,null,null,null,null,null,null,null,null,null,null,null,null,null,null,null,null,null,null,null,null,null,null,null,null,null,null,null,null,null,null,null,null,null,""]
[39,"INDIAN",null,null,null,null,null,null,null,null,null,null,null,null,null,null,null,null,null,null,null,null,null,null,null,null,null,null,null,null,null,null,null,null,null,null,null,""]
[40,"INDIAN",null,null,null,null,null,null,null,null,null,null,null,null,null,null,null,null,null,null,null,null,null,null,null,null,null,null,null,null,null,null,null,null,null,null,null,""]
[41,"Bangali",null,null,null,null,null,null,null,null,null,null,null,null,null,null,null,null,null,null,null,null,null,null,null,null,null,null,null,null,null,null,null,null,null,null,null,""]
[42,"Bangali",null,null,null,null,null,null,null,null,null,null,null,null,null,null,null,null,null,null,null,null,null,null,null,null,null,null,null,null,null,null,null,null,null,null,null,""]
[43,"Bangali",null,null,null,null,null,null,null,null,null,null,null,null,null,null,null,null,null,null,null,null,null,null,null,null,null,null,null,null,null,null,null,null,null,null,null,""]
[44,"Bangali",null,null,null,null,null,null,null,null,null,null,null,null,null,null,null,null,null,null,null,null,null,null,null,null,null,null,null,null,null,null,null,null,null,null,null,""]
[45,"Bangali",null,null,null,null,null,null,null,null,null,null,null,null,null,null,null,null,null,null,null,null,null,null,null,null,null,null,null,null,null,null,null,null,null,null,null,""]
[46,"Bangali",null,null,null,null,null,null,null,null,null,null,null,null,null,null,null,null,null,null,null,null,null,null,null,null,null,null,null,null,null,null,null,null,null,null,null,""]
[47,"Bangali",null,null,null,null,null,null,null,null,null,null,null,null,null,null,null,null,null,null,null,null,null,null,null,null,null,null,null,null,null,null,null,null,null,null,null,""]
[48,"Bangali",null,null,null,null,null,null,null,null,null,null,null,null,null,null,null,null,null,null,null,null,null,null,null,null,null,null,null,null,null,null,null,null,null,null,null,""]
[49,null,null,null,null,null,null,null,null,null,null,null,null,null,null,null,null,null,null,null,null,null,null,null,null,null,null,null,null,null,null,null,null,null,null,null,null,""]
[50,"INDIAN",null,null,null,null,null,null,null,null,null,null,null,null,null,null,null,null,null,null,null,null,null,null,null,null,null,null,null,null,null,null,null,null,null,null,null,""]
[51,"INDIAN",null,null,null,null,null,null,null,null,null,null,null,null,null,null,null,null,null,null,null,null,null,null,null,null,null,null,null,null,null,null,null,null,null,null,null,""]
[52,"INDIAN",null,null,null,null,null,null,null,null,null,null,null,null,null,null,null,null,null,null,null,null,null,null,null,null,null,null,null,null,null,null,null,null,null,null,null,""]
[53,"INDIAN",null,null,null,null,null,null,null,null,null,null,null,null,null,null,null,null,null,null,null,null,null,null,null,null,null,null,null,null,null,null,null,null,null,null,null,""]
[54,"INDIAN",null,null,null,null,null,null,null,null,null,null,null,null,null,null,null,null,null,null,null,null,null,null,null,null,null,null,null,null,null,null,null,null,null,null,null,""]
[55,null,null,null,null,null,null,null,null,null,null,null,null,null,null,null,null,null,null,null,null,null,null,null,null,null,null,null,null,null,null,null,null,null,null,null,null,""]
[56,null,null,null,null,null,null,null,null,null,null,null,null,null,null,null,null,null,null,null,null,null,null,null,null,null,null,null,null,null,null,null,null,null,null,null,null,""]
[57,null,null,null,null,null,null,null,null,null,null,null,null,null,null,null,null,null,null,null,null,null,null,null,null,null,null,null,null,null,null,null,null,null,null,null,null,""]
[58,null,null,null,null,null,null,null,null,null,null,null,null,null,null,null,null,null,null,null,null,null,null,null,null,null,null,null,null,null,null,null,null,null,null,null,null,""]
[{"$f":"ROW()-3","v":59},null,null,null,null,null,null,null,null,null,null,null,null,null,null,null,null,null,null,null,null,null,null,null,null,null,null,null,null,null,null,null,null,null,null,null,null,""]
[60,null,null,null,null,null,null,null,null,null,null,null,null,null,null,null,null,null,null,null,null,null,null,null,null,null,null,null,null,null,null,null,null,null,null,null,null,{"$f":"IF(C63=\"\",\"\",C63)","v":""}]
[61,null,null,null,null,null,null,null,null,null,null,null,null,null,null,null,null,null,null,null,null,null,null,null,null,null,null,null,null,null,null,null,null,null,null,null,null,""]
[62,null,null,null,null,null,null,null,null,null,null,null,null,null,null,null,null,null,null,null,null,null,null,null,null,null,null,null,null,null,null,null,null,null,null,null,null,""]
[63,null,null,null,null,null,null,null,null,null,null,null,null,null,null,null,null,null,null,null,null,null,null,null,null,null,null,null,null,null,null,null,null,null,null,null,null,""]
[null,null,null,null,null,null,null,null,null,null,null,null,null,null,null,null,null,null,null,null,null,null,null,null,null,null,null,null,null,null,null,null,null,null,null,null,null,""]
[{"$f":"ROW()-3","v":65},null,null,null,null,null,null,null,null,null,null,null,null,null,null,null,null,null,null,null,null,null,null,null,null,null,null,null,null,null,null,null,null,null,null,null,null,""]
[null,"الــــــــــــــــــــــمـــــــــــــــــــــــــــــــــــجــــــــــــــــــــــــــــــــــــــمــــــــــــــــــــــــــــــــــــــــــــوع",null,null,"المجموع",{"$f":"SUM(F3:F61)","v":40},20,40,0,20,50,-30,30,10,20,0,20,20,-30,40,-10,30,0,0,0,20,30,-31,50,-25,30,-60,0,20,20,0,{"$f":"SUM(F69:AJ69)","v":324}]
[]
[]
[null,null,null,null,null,null,null,null,null,null,null,null,null,null,null,null,null,null,null,null,null,null,null,null,null,null,null,null,null,null,null,null,null,null,"مجموع المكافات",null,{"$f":"SUMIF(AK4:AK68,\">=0\")","v":400}]
[null,null,null,null,null,null,null,null,null,null,null,null,null,null,null,null,null,null,null,null,null,null,null,null,null,null,null,null,null,null,null,null,null,null,"مجموع الخصميات",null,{"$f":"SUMIF(AK4:AK68,\"<=0\")","v":-76}]
[null,null,null,null,{"$f":"[1]المجاميع!C2","v":"2023-08-01"},{"$f":"E74","v":"2023-08-01"},{"$f":"F74+1","v":"2023-08-02"},{"$f":"G74+1","v":"2023-08-03"},"2023-08-04","2023-08-05","2023-08-06","2023-08-07","2023-08-08","2023-08-09","2023-08-10","2023-08-11","2023-08-12","2023-08-13","2023-08-14","2023-08-15","2023-08-16","2023-08-17","2023-08-18","2023-08-19","2023-08-20","2023-08-21","2023-08-22","2023-08-23","2023-08-24","2023-08-25","2023-08-26","2023-08-27","2023-08-28","2023-08-29","2023-08-30","2023-08-31"]
[null,null,null,null,null,{"$f":"TEXT(F74,\"DDD\")","v":"Tue"},{"$f":"TEXT(G74,\"DDD\")","v":"Wed"},"Thu","Fri","Sat","Sun","Mon","Tue","Wed","Thu","Fri","Sat","Sun",{"$f":"TEXT(S74,\"DDD\")","v":"Mon"},"Tue","Wed","Thu","Fri",{"$f":"TEXT(X74,\"DDD\")","v":"Sat"},"Sun","Mon","Tue","Wed","Thu","Fri","Sat","Sun","Mon","Tue","Wed","Thu"]

{"sheet":"تجهيز  5 ","index":4,"n_rows":75,"n_cols":38,"rows_kept":75,"cut":false,"hidden":false,"merged":[[0,0,0,2],[71,34,71,35],[72,34,72,35]]}
[{"$f":"[1]المجاميع!C2","v":"2023-08-01"},null,null,null,"مكافآت و خصميات الانتاج شهر   ",null,null,null,null,null,null,null,null,null,null,null,null,null,null,null,null,null,null,null,{"$f":"E3","v":"التجهيــــــــــــــــــز 2"},null,null,null,null,null,null,null,null,null,null,null,null,"P"]
["Sl.","الجنسية","File.","Name of the employees","اسماء العاملين",1,2,3,4,5,6,7,8,9,10,11,12,13,14,15,16,17,18,19,20,21,22,23,24,25,26,27,28,29,30,31,"المجموع"]
[null,null,null,"NEW FINISHING 2","التجهيــــــــــــــــــز 2",null,null,null,null,null,null,null,null,null,null,null,null,null,null,null,null,null,null,null,null,null,null,null,null,null,null,null,null,null,null,null,{"$f":"SUM(F3:AJ3)","v":0},{"$f":"E3","v":"التجهيــــــــــــــــــز 2"}]
[{"$f":"ROW()-3","v":1},"INDIAN",668,"Abul Qasim Totomian","خالد",10,-10,null,null,null,10,-10,null,null,null,null,null,null,-10,null,-10,null,null,null,null,null,null,null,10,null,10,null,null,null,null,-10,{"$f":"SUM(F$4:AJ$4)","v":-10},{"$f":"IF(C4=\"\",\"\",C4)","v":668}]
[2,"Bangali",669,"Habeeb Rahman","فيصل",null,10,null,null,null,10,null,10,10,null,null,null,null,null,10,null,10,null,null,null,10,null,10,null,null,10,null,null,null,null,10,{"$f":"SUM(F5:AJ5)","v":100},{"$f":"IF(C5=\"\",\"\",C5)","v":669}]
[3,"Indian",916,"Jamal Miah Jalaluddin","هاني",null,null,null,null,null,null,null,null,null,null,null,null,null,null,null,null,null,null,null,null,null,null,null,null,null,null,null,null,null,null,null,0,916]
[4,"Indian",994,"Shaik Abdu Hashim","سلطان",null,null,null,null,10,null,-10,10,null,null,null,10,null,null,null,null,null,null,null,null,null,null,-10,10,null,null,-10,null,10,10,null,30,994]
[5,"Bangali",1224,"LATIF SURUJMIAH","احمد 1",null,null,10,null,null,null,-10,null,null,null,null,null,null,null,null,null,null,null,null,null,null,null,10,10,null,null,-10,null,null,null,10,20,1224]
[6,"Indian",1350,"Mohd. Iqbal.Rafeeq Islam","احمد 2",10,10,null,null,10,10,-10,null,null,null,null,null,null,-10,10,null,null,null,null,null,null,null,null,10,null,-10,-20,null,null,null,-20,-10,1350]
[7,"INDIAN",2251,"Alamin ali patoar","احمد 3",null,null,null,null,null,null,null,null,null,null,null,null,null,null,null,null,null,null,null,null,null,null,null,null,null,null,null,null,null,null,null,0,2251]
[8,"INDIAN",2532,"Buddhadeb madhusudan paramanik","احمد 4",null,10,10,null,null,10,10,null,null,null,null,null,10,null,null,null,10,null,null,null,null,10,null,null,null,null,null,null,null,10,null,80,2532]
[9,"Nepali",2555,"DIPESH KUMAR BISHWAKARMA","مصطفى ",null,null,null,null,null,null,null,null,null,null,null,null,null,null,null,null,null,null,null,null,null,null,-15,null,-10,null,null,null,null,null,null,-25,2555]
[10,"INDIAN",2556,"Dipankar nitai ghosh","هثيم",10,null,10,null,null,null,null,10,null,10,null,null,10,null,10,null,10,null,null,null,null,10,-10,null,null,10,-10,null,null,null,null,70,2556]
[11,"INDIAN",2557,"Kalyan kailash mandal","وائل",null,null,null,null,null,null,null,null,null,null,null,null,null,null,null,null,null,null,null,null,null,null,null,null,null,null,null,null,null,null,null,0,2557]
[12,"INDIAN",2558,"Nishiprovat krishna chandra manna","خالد سعيد",null,null,null,null,null,null,null,null,null,null,null,null,null,null,null,null,null,null,null,null,null,null,-16,null,-15,null,null,null,null,null,null,-31,2558]
[13,"INDIAN",2584,"susanta dulal chandra jara","مصطفى ",10,null,10,null,null,10,null,null,null,10,null,10,null,-10,10,null,null,null,null,null,10,10,null,10,null,10,-10,null,10,null,10,100,2584]
[14,"Nepali",null,null,null,null,null,null,null,null,null,null,null,null,null,null,null,null,null,null,null,null,null,null,null,null,null,null,null,null,null,null,null,null,null,null,null,""]
[15,"INDIAN",null,null,null,null,null,null,null,null,null,null,null,null,null,null,null,null,null,null,null,null,null,null,null,null,null,null,null,null,null,null,null,null,null,null,null,""]
[16,"INDIAN",null,null,null,null,null,null,null,null,null,null,null,null,null,null,null,null,null,null,null,null,null,null,null,null,null,null,null,null,null,null,null,null,null,null,null,""]
[17,"Indian",null,null,null,null,null,null,null,null,null,null,null,null,null,null,null,null,null,null,null,null,null,null,null,null,null,null,null,null,null,null,null,null,null,null,null,""]
[18,null,null,null,null,null,null,null,null,null,null,null,null,null,null,null,null,null,null,null,null,null,null,null,null,null,null,null,null,null,null,null,null,null,null,null,null,""]
[19,"INDIAN",null,null,null,null,null,null,null,null,null,null,null,null,null,null,null,null,null,null,null,null,null,null,null,null,null,null,null,null,null,null,null,null,null,null,null,""]
[20,"Nepali",null,null,null,null,null,null,null,null,null,null,null,null,null,null,null,null,null,null,null,null,null,null,null,null,null,null,null,null,null,null,null,null,null,null,null,""]
[21,"Nepali",null,null,null,null,null,null,null,null,null,null,null,null,null,null,null,null,null,null,null,null,null,null,null,null,null,null,null,null,null,null,null,null,null,null,null,""]
[22,"Nepali",null,null,null,null,null,null,null,null,null,null,null,null,null,null,null,null,null,null,null,null,null,null,null,null,null,null,null,null,null,null,null,null,null,null,null,""]
[23,"Nepali",null,null,null,null,null,null,null,null,null,null,null,null,null,null,null,null,null,null,null,null,null,null,null,null,null,null,null,null,null,null,null,null,null,null,null,""]
[24,"Nepali",null,null,null,null,null,null,null,null,null,null,null,null,null,null,null,null,null,null,null,null,null,null,null,null,null,null,null,null,null,null,null,null,null,null,null,""]
[25,"Nepali",null,null,null,null,null,null,null,null,null,null,null,null,null,null,null,null,null,null,null,null,null,null,null,null,null,null,null,null,null,null,null,null,null,null,null,""]
[26,null,null,null,null,null,null,null,null,null,null,null,null,null,null,null,null,null,null,null,null,null,null,null,null,null,null,null,null,null,null,null,null,null,null,null,null,""]
[27,"Nepali",null,null,null,null,null,null,null,null,null,null,null,null,null,null,null,null,null,null,null,null,null,null,null,null,null,null,null,null,null,null,null,null,null,null,null,""]
[28,"Nepali",null,null,null,null,null,null,null,null,null,null,null,null,null,null,null,null,null,null,null,null,null,null,null,null,null,null,null,null,null,null,null,null,null,null,null,""]
[29,"Nepali",null,null,null,null,null,null,null,null,null,null,null,null,null,null,null,null,null,null,null,null,null,null,null,null,null,null,null,null,null,null,null,null,null,null,null,""]
[30,"INDIAN",null,null,null,null,null,null,null,null,null,null,null,null,null,null,null,null,null,null,null,null,null,null,null,null,null,null,null,null,null,null,null,null,null,null,null,""]
[31,"INDIAN",null,null,null,null,null,null,null,null,null,null,null,null,null,null,null,null,null,null,null,null,null,null,null,null,null,null,null,null,null,null,null,null,null,null,null,""]
[32,"INDIAN",null,null,null,null,null,null,null,null,null,null,null,null,null,null,null,null,null,null,null,null,null,null,null,null,null,null,null,null,null,null,null,null,null,null,null,""]
[33,null,null,null,null,null,null,null,null,null,null,null,null,null,null,null,null,null,null,null,null,null,null,null,null,null,null,null,null,null,null,null,null,null,null,null,null,""]
[34,"Nepali",null,null,null,null,null,null,null,null,null,null,null,null,null,null,null,null,null,null,null,null,null,null,null,null,null,null,null,null,null,null,null,null,null,null,null,""]
[35,"Nepali",null,null,null,null,null,null,null,null,null,null,null,null,null,null,null,null,null,null,null,null,null,null,null,null,null,null,null,null,null,null,null,null,null,null,null,""]
[36,"Nepali",null,null,null,null,null,null,null,null,null,null,null,null,null,null,null,null,null,null,null,null,null,null,null,null,null,null,null,null,null,null,null,null,null,null,null,""]
[37,"INDIAN",null,null,null,null,null,null,null,null,null,null,null,null,null,null,null,null,null,null,null,null,null,null,null,null,null,null,null,null,null,null,null,null,null,null,null,""]
[38,"INDIAN",null,null,null,null,null,null,null,null,null,null,null,null,null,null,null,null,null,null,null,null,null,null,null,null,null,null,null,null,null,null,null,null,null,null,null,""]
[39,"INDIAN",null,null,null,null,null,null,null,null,null,null,null,null,null,null,null,null,null,null,null,null,null,null,null,null,null,null,null,null,null,null,null,null,null,null,null,""]
[40,"INDIAN",null,null,null,null,null,null,null,null,null,null,null,null,null,null,null,null,null,null,null,null,null,null,null,null,null,null,null,null,null,null,null,null,null,null,null,""]
[41,"Bangali",null,null,null,null,null,null,null,null,null,null,null,null,null,null,null,null,null,null,null,null,null,null,null,null,null,null,null,null,null,null,null,null,null,null,null,""]
[42,"Bangali",null,null,null,null,null,null,null,null,null,null,null,null,null,null,null,null,null,null,null,null,null,null,null,null,null,null,null,null,null,null,null,null,null,null,null,""]
[43,"Bangali",null,null,null,null,null,null,null,null,null,null,null,null,null,null,null,null,null,null,null,null,null,null,null,null,null,null,null,null,null,null,null,null,null,null,null,""]
[44,"Bangali",null,null,null,null,null,null,null,null,null,null,null,null,null,null,null,null,null,null,null,null,null,null,null,null,null,null,null,null,null,null,null,null,null,null,null,""]
[45,"Bangali",null,null,null,null,null,null,null,null,null,null,null,null,null,null,null,null,null,null,null,null,null,null,null,null,null,null,null,null,null,null,null,null,null,null,null,""]
[46,"Bangali",null,null,null,null,null,null,null,null,null,null,null,null,null,null,null,null,null,null,null,null,null,null,null,null,null,null,null,null,null,null,null,null,null,null,null,""]
[47,"Bangali",null,null,null,null,null,null,null,null,null,null,null,null,null,null,null,null,null,null,null,null,null,null,null,null,null,null,null,null,null,null,null,null,null,null,null,""]
[48,"Bangali",null,null,null,null,null,null,null,null,null,null,null,null,null,null,null,null,null,null,null,null,null,null,null,null,null,null,null,null,null,null,null,null,null,null,null,""]
[49,null,null,null,null,null,null,null,null,null,null,null,null,null,null,null,null,null,null,null,null,null,null,null,null,null,null,null,null,null,null,null,null,null,null,null,null,""]
[50,"INDIAN",null,null,null,null,null,null,null,null,null,null,null,null,null,null,null,null,null,null,null,null,null,null,null,null,null,null,null,null,null,null,null,null,null,null,null,""]
[51,"INDIAN",null,null,null,null,null,null,null,null,null,null,null,null,null,null,null,null,null,null,null,null,null,null,null,null,null,null,null,null,null,null,null,null,null,null,null,""]
[52,"INDIAN",null,null,null,null,null,null,null,null,null,null,null,null,null,null,null,null,null,null,null,null,null,null,null,null,null,null,null,null,null,null,null,null,null,null,null,""]
[53,"INDIAN",null,null,null,null,null,null,null,null,null,null,null,null,null,null,null,null,null,null,null,null,null,null,null,null,null,null,null,null,null,null,null,null,null,null,null,""]
[54,"INDIAN",null,null,null,null,null,null,null,null,null,null,null,null,null,null,null,null,null,null,null,null,null,null,null,null,null,null,null,null,null,null,null,null,null,null,null,""]
[55,null,null,null,null,null,null,null,null,null,null,null,null,null,null,null,null,null,null,null,null,null,null,null,null,null,null,null,null,null,null,null,null,null,null,null,null,""]
[56,null,null,null,null,null,null,null,null,null,null,null,null,null,null,null,null,null,null,null,null,null,null,null,null,null,null,null,null,null,null,null,null,null,null,null,null,""]
[57,null,null,null,null,null,null,null,null,null,null,null,null,null,null,null,null,null,null,null,null,null,null,null,null,null,null,null,null,null,null,null,null,null,null,null,null,""]
[58,null,null,null,null,null,null,null,null,null,null,null,null,null,null,null,null,null,null,null,null,null,null,null,null,null,null,null,null,null,null,null,null,null,null,null,null,""]
[{"$f":"ROW()-3","v":59},null,null,null,null,null,null,null,null,null,null,null,null,null,null,null,null,null,null,null,null,null,null,null,null,null,null,null,null,null,null,null,null,null,null,null,null,""]
[60,null,null,null,null,null,null,null,null,null,null,null,null,null,null,null,null,null,null,null,null,null,null,null,null,null,null,null,null,null,null,null,null,null,null,null,null,{"$f":"IF(C63=\"\",\"\",C63)","v":""}]
[61,null,null,null,null,null,null,null,null,null,null,null,null,null,null,null,null,null,null,null,null,null,null,null,null,null,null,null,null,null,null,null,null,null,null,null,null,""]
[62,null,null,null,null,null,null,null,null,null,null,null,null,null,null,null,null,null,null,null,null,null,null,null,null,null,null,null,null,null,null,null,null,null,null,null,null,""]
[63,null,null,null,null,null,null,null,null,null,null,null,null,null,null,null,null,null,null,null,null,null,null,null,null,null,null,null,null,null,null,null,null,null,null,null,null,""]
[null,null,null,null,null,null,null,null,null,null,null,null,null,null,null,null,null,null,null,null,null,null,null,null,null,null,null,null,null,null,null,null,null,null,null,null,null,""]
[{"$f":"ROW()-3","v":65},null,null,null,null,null,null,null,null,null,null,null,null,null,null,null,null,null,null,null,null,null,null,null,null,null,null,null,null,null,null,null,null,null,null,null,null,""]
[null,"الــــــــــــــــــــــمـــــــــــــــــــــــــــــــــــجــــــــــــــــــــــــــــــــــــــمــــــــــــــــــــــــــــــــــــــــــــوع",null,null,"المجموع",{"$f":"SUM(F3:F61)","v":40},20,40,0,20,50,-30,30,10,20,0,20,20,-30,40,-10,30,0,0,0,20,30,-31,50,-25,30,-60,0,20,20,0,{"$f":"SUM(F69:AJ69)","v":324}]
[]
[]
[null,null,null,null,null,null,null,null,null,null,null,null,null,null,null,null,null,null,null,null,null,null,null,null,null,null,null,null,null,null,null,null,null,null,"مجموع المكافات",null,{"$f":"SUMIF(AK4:AK68,\">=0\")","v":400}]
[null,null,null,null,null,null,null,null,null,null,null,null,null,null,null,null,null,null,null,null,null,null,null,null,null,null,null,null,null,null,null,null,null,null,"مجموع الخصميات",null,{"$f":"SUMIF(AK4:AK68,\"<=0\")","v":-76}]
[null,null,null,null,{"$f":"[1]المجاميع!C2","v":"2023-08-01"},{"$f":"E74","v":"2023-08-01"},{"$f":"F74+1","v":"2023-08-02"},{"$f":"G74+1","v":"2023-08-03"},"2023-08-04","2023-08-05","2023-08-06","2023-08-07","2023-08-08","2023-08-09","2023-08-10","2023-08-11","2023-08-12","2023-08-13","2023-08-14","2023-08-15","2023-08-16","2023-08-17","2023-08-18","2023-08-19","2023-08-20","2023-08-21","2023-08-22","2023-08-23","2023-08-24","2023-08-25","2023-08-26","2023-08-27","2023-08-28","2023-08-29","2023-08-30","2023-08-31"]
[null,null,null,null,null,{"$f":"TEXT(F74,\"DDD\")","v":"Tue"},{"$f":"TEXT(G74,\"DDD\")","v":"Wed"},"Thu","Fri","Sat","Sun","Mon","Tue","Wed","Thu","Fri","Sat","Sun",{"$f":"TEXT(S74,\"DDD\")","v":"Mon"},"Tue","Wed","Thu","Fri",{"$f":"TEXT(X74,\"DDD\")","v":"Sat"},"Sun","Mon","Tue","Wed","Thu","Fri","Sat","Sun","Mon","Tue","Wed","Thu"]

{"sheet":"تجهيز  6  ","index":5,"n_rows":75,"n_cols":38,"rows_kept":75,"cut":false,"hidden":false,"merged":[[0,0,0,2],[71,34,71,35],[72,34,72,35]]}
[{"$f":"[1]المجاميع!C2","v":"2023-08-01"},null,null,null,"مكافآت و خصميات الانتاج شهر   ",null,null,null,null,null,null,null,null,null,null,null,null,null,null,null,null,null,null,null,{"$f":"E3","v":"التجهيــــــــــــــــــز 2"},null,null,null,null,null,null,null,null,null,null,null,null,"P"]
["Sl.","الجنسية","File.","Name of the employees","اسماء العاملين",1,2,3,4,5,6,7,8,9,10,11,12,13,14,15,16,17,18,19,20,21,22,23,24,25,26,27,28,29,30,31,"المجموع"]
[null,null,null,"NEW FINISHING 2","التجهيــــــــــــــــــز 2",null,null,null,null,null,null,null,null,null,null,null,null,null,null,null,null,null,null,null,null,null,null,null,null,null,null,null,null,null,null,null,{"$f":"SUM(F3:AJ3)","v":0},{"$f":"E3","v":"التجهيــــــــــــــــــز 2"}]
[{"$f":"ROW()-3","v":1},"INDIAN",668,"Abul Qasim Totomian","خالد",10,-10,null,null,null,10,-10,null,null,null,null,null,null,-10,null,-10,null,null,null,null,null,null,null,10,null,10,null,null,null,null,-10,{"$f":"SUM(F$4:AJ$4)","v":-10},{"$f":"IF(C4=\"\",\"\",C4)","v":668}]
[2,"Bangali",669,"Habeeb Rahman","فيصل",null,10,null,null,null,10,null,10,10,null,null,null,null,null,10,null,10,null,null,null,10,null,10,null,null,10,null,null,null,null,10,{"$f":"SUM(F5:AJ5)","v":100},{"$f":"IF(C5=\"\",\"\",C5)","v":669}]
[3,"Indian",916,"Jamal Miah Jalaluddin","هاني",null,null,null,null,null,null,null,null,null,null,null,null,null,null,null,null,null,null,null,null,null,null,null,null,null,null,null,null,null,null,null,0,916]
[4,"Indian",994,"Shaik Abdu Hashim","سلطان",null,null,null,null,10,null,-10,10,null,null,null,10,null,null,null,null,null,null,null,null,null,null,-10,10,null,null,-10,null,10,10,null,30,994]
[5,"Bangali",1224,"LATIF SURUJMIAH","احمد 1",null,null,10,null,null,null,-10,null,null,null,null,null,null,null,null,null,null,null,null,null,null,null,10,10,null,null,-10,null,null,null,10,20,1224]
[6,"Indian",1350,"Mohd. Iqbal.Rafeeq Islam","احمد 2",10,10,null,null,10,10,-10,null,null,null,null,null,null,-10,10,null,null,null,null,null,null,null,null,10,null,-10,-20,null,null,null,-20,-10,1350]
[7,"INDIAN",2251,"Alamin ali patoar","احمد 3",null,null,null,null,null,null,null,null,null,null,null,null,null,null,null,null,null,null,null,null,null,null,null,null,null,null,null,null,null,null,null,0,2251]
[8,"INDIAN",2532,"Buddhadeb madhusudan paramanik","احمد 4",null,10,10,null,null,10,10,null,null,null,null,null,10,null,null,null,10,null,null,null,null,10,null,null,null,null,null,null,null,10,null,80,2532]
[9,"Nepali",2555,"DIPESH KUMAR BISHWAKARMA","مصطفى ",null,null,null,null,null,null,null,null,null,null,null,null,null,null,null,null,null,null,null,null,null,null,-15,null,-10,null,null,null,null,null,null,-25,2555]
[10,"INDIAN",2556,"Dipankar nitai ghosh","هثيم",10,null,10,null,null,null,null,10,null,10,null,null,10,null,10,null,10,null,null,null,null,10,-10,null,null,10,-10,null,null,null,null,70,2556]
[11,"INDIAN",2557,"Kalyan kailash mandal","وائل",null,null,null,null,null,null,null,null,null,null,null,null,null,null,null,null,null,null,null,null,null,null,null,null,null,null,null,null,null,null,null,0,2557]
[12,"INDIAN",2558,"Nishiprovat krishna chandra manna","خالد سعيد",null,null,null,null,null,null,null,null,null,null,null,null,null,null,null,null,null,null,null,null,null,null,-16,null,-15,null,null,null,null,null,null,-31,2558]
[13,"INDIAN",2584,"susanta dulal chandra jara","مصطفى ",10,null,10,null,null,10,null,null,null,10,null,10,null,-10,10,null,null,null,null,null,10,10,null,10,null,10,-10,null,10,null,10,100,2584]
[14,"Nepali",null,null,null,null,null,null,null,null,null,null,null,null,null,null,null,null,null,null,null,null,null,null,null,null,null,null,null,null,null,null,null,null,null,null,null,""]
[15,"INDIAN",null,null,null,null,null,null,null,null,null,null,null,null,null,null,null,null,null,null,null,null,null,null,null,null,null,null,null,null,null,null,null,null,null,null,null,""]
[16,"INDIAN",null,null,null,null,null,null,null,null,null,null,null,null,null,null,null,null,null,null,null,null,null,null,null,null,null,null,null,null,null,null,null,null,null,null,null,""]
[17,"Indian",null,null,null,null,null,null,null,null,null,null,null,null,null,null,null,null,null,null,null,null,null,null,null,null,null,null,null,null,null,null,null,null,null,null,null,""]
[18,null,null,null,null,null,null,null,null,null,null,null,null,null,null,null,null,null,null,null,null,null,null,null,null,null,null,null,null,null,null,null,null,null,null,null,null,""]
[19,"INDIAN",null,null,null,null,null,null,null,null,null,null,null,null,null,null,null,null,null,null,null,null,null,null,null,null,null,null,null,null,null,null,null,null,null,null,null,""]
[20,"Nepali",null,null,null,null,null,null,null,null,null,null,null,null,null,null,null,null,null,null,null,null,null,null,null,null,null,null,null,null,null,null,null,null,null,null,null,""]
[21,"Nepali",null,null,null,null,null,null,null,null,null,null,null,null,null,null,null,null,null,null,null,null,null,null,null,null,null,null,null,null,null,null,null,null,null,null,null,""]
[22,"Nepali",null,null,null,null,null,null,null,null,null,null,null,null,null,null,null,null,null,null,null,null,null,null,null,null,null,null,null,null,null,null,null,null,null,null,null,""]
[23,"Nepali",null,null,null,null,null,null,null,null,null,null,null,null,null,null,null,null,null,null,null,null,null,null,null,null,null,null,null,null,null,null,null,null,null,null,null,""]
[24,"Nepali",null,null,null,null,null,null,null,null,null,null,null,null,null,null,null,null,null,null,null,null,null,null,null,null,null,null,null,null,null,null,null,null,null,null,null,""]
[25,"Nepali",null,null,null,null,null,null,null,null,null,null,null,null,null,null,null,null,null,null,null,null,null,null,null,null,null,null,null,null,null,null,null,null,null,null,null,""]
[26,null,null,null,null,null,null,null,null,null,null,null,null,null,null,null,null,null,null,null,null,null,null,null,null,null,null,null,null,null,null,null,null,null,null,null,null,""]
[27,"Nepali",null,null,null,null,null,null,null,null,null,null,null,null,null,null,null,null,null,null,null,null,null,null,null,null,null,null,null,null,null,null,null,null,null,null,null,""]
[28,"Nepali",null,null,null,null,null,null,null,null,null,null,null,null,null,null,null,null,null,null,null,null,null,null,null,null,null,null,null,null,null,null,null,null,null,null,null,""]
[29,"Nepali",null,null,null,null,null,null,null,null,null,null,null,null,null,null,null,null,null,null,null,null,null,null,null,null,null,null,null,null,null,null,null,null,null,null,null,""]
[30,"INDIAN",null,null,null,null,null,null,null,null,null,null,null,null,null,null,null,null,null,null,null,null,null,null,null,null,null,null,null,null,null,null,null,null,null,null,null,""]
[31,"INDIAN",null,null,null,null,null,null,null,null,null,null,null,null,null,null,null,null,null,null,null,null,null,null,null,null,null,null,null,null,null,null,null,null,null,null,null,""]
[32,"INDIAN",null,null,null,null,null,null,null,null,null,null,null,null,null,null,null,null,null,null,null,null,null,null,null,null,null,null,null,null,null,null,null,null,null,null,null,""]
[33,null,null,null,null,null,null,null,null,null,null,null,null,null,null,null,null,null,null,null,null,null,null,null,null,null,null,null,null,null,null,null,null,null,null,null,null,""]
[34,"Nepali",null,null,null,null,null,null,null,null,null,null,null,null,null,null,null,null,null,null,null,null,null,null,null,null,null,null,null,null,null,null,null,null,null,null,null,""]
[35,"Nepali",null,null,null,null,null,null,null,null,null,null,null,null,null,null,null,null,null,null,null,null,null,null,null,null,null,null,null,null,null,null,null,null,null,null,null,""]
[36,"Nepali",null,null,null,null,null,null,null,null,null,null,null,null,null,null,null,null,null,null,null,null,null,null,null,null,null,null,null,null,null,null,null,null,null,null,null,""]
[37,"INDIAN",null,null,null,null,null,null,null,null,null,null,null,null,null,null,null,null,null,null,null,null,null,null,null,null,null,null,null,null,null,null,null,null,null,null,null,""]
[38,"INDIAN",null,null,null,null,null,null,null,null,null,null,null,null,null,null,null,null,null,null,null,null,null,null,null,null,null,null,null,null,null,null,null,null,null,null,null,""]
[39,"INDIAN",null,null,null,null,null,null,null,null,null,null,null,null,null,null,null,null,null,null,null,null,null,null,null,null,null,null,null,null,null,null,null,null,null,null,null,""]
[40,"INDIAN",null,null,null,null,null,null,null,null,null,null,null,null,null,null,null,null,null,null,null,null,null,null,null,null,null,null,null,null,null,null,null,null,null,null,null,""]
[41,"Bangali",null,null,null,null,null,null,null,null,null,null,null,null,null,null,null,null,null,null,null,null,null,null,null,null,null,null,null,null,null,null,null,null,null,null,null,""]
[42,"Bangali",null,null,null,null,null,null,null,null,null,null,null,null,null,null,null,null,null,null,null,null,null,null,null,null,null,null,null,null,null,null,null,null,null,null,null,""]
[43,"Bangali",null,null,null,null,null,null,null,null,null,null,null,null,null,null,null,null,null,null,null,null,null,null,null,null,null,null,null,null,null,null,null,null,null,null,null,""]
[44,"Bangali",null,null,null,null,null,null,null,null,null,null,null,null,null,null,null,null,null,null,null,null,null,null,null,null,null,null,null,null,null,null,null,null,null,null,null,""]
[45,"Bangali",null,null,null,null,null,null,null,null,null,null,null,null,null,null,null,null,null,null,null,null,null,null,null,null,null,null,null,null,null,null,null,null,null,null,null,""]
[46,"Bangali",null,null,null,null,null,null,null,null,null,null,null,null,null,null,null,null,null,null,null,null,null,null,null,null,null,null,null,null,null,null,null,null,null,null,null,""]
[47,"Bangali",null,null,null,null,null,null,null,null,null,null,null,null,null,null,null,null,null,null,null,null,null,null,null,null,null,null,null,null,null,null,null,null,null,null,null,""]
[48,"Bangali",null,null,null,null,null,null,null,null,null,null,null,null,null,null,null,null,null,null,null,null,null,null,null,null,null,null,null,null,null,null,null,null,null,null,null,""]
[49,null,null,null,null,null,null,null,null,null,null,null,null,null,null,null,null,null,null,null,null,null,null,null,null,null,null,null,null,null,null,null,null,null,null,null,null,""]
[50,"INDIAN",null,null,null,null,null,null,null,null,null,null,null,null,null,null,null,null,null,null,null,null,null,null,null,null,null,null,null,null,null,null,null,null,null,null,null,""]
[51,"INDIAN",null,null,null,null,null,null,null,null,null,null,null,null,null,null,null,null,null,null,null,null,null,null,null,null,null,null,null,null,null,null,null,null,null,null,null,""]
[52,"INDIAN",null,null,null,null,null,null,null,null,null,null,null,null,null,null,null,null,null,null,null,null,null,null,null,null,null,null,null,null,null,null,null,null,null,null,null,""]
[53,"INDIAN",null,null,null,null,null,null,null,null,null,null,null,null,null,null,null,null,null,null,null,null,null,null,null,null,null,null,null,null,null,null,null,null,null,null,null,""]
[54,"INDIAN",null,null,null,null,null,null,null,null,null,null,null,null,null,null,null,null,null,null,null,null,null,null,null,null,null,null,null,null,null,null,null,null,null,null,null,""]
[55,null,null,null,null,null,null,null,null,null,null,null,null,null,null,null,null,null,null,null,null,null,null,null,null,null,null,null,null,null,null,null,null,null,null,null,null,""]
[56,null,null,null,null,null,null,null,null,null,null,null,null,null,null,null,null,null,null,null,null,null,null,null,null,null,null,null,null,null,null,null,null,null,null,null,null,""]
[57,null,null,null,null,null,null,null,null,null,null,null,null,null,null,null,null,null,null,null,null,null,null,null,null,null,null,null,null,null,null,null,null,null,null,null,null,""]
[58,null,null,null,null,null,null,null,null,null,null,null,null,null,null,null,null,null,null,null,null,null,null,null,null,null,null,null,null,null,null,null,null,null,null,null,null,""]
[{"$f":"ROW()-3","v":59},null,null,null,null,null,null,null,null,null,null,null,null,null,null,null,null,null,null,null,null,null,null,null,null,null,null,null,null,null,null,null,null,null,null,null,null,""]
[60,null,null,null,null,null,null,null,null,null,null,null,null,null,null,null,null,null,null,null,null,null,null,null,null,null,null,null,null,null,null,null,null,null,null,null,null,{"$f":"IF(C63=\"\",\"\",C63)","v":""}]
[61,null,null,null,null,null,null,null,null,null,null,null,null,null,null,null,null,null,null,null,null,null,null,null,null,null,null,null,null,null,null,null,null,null,null,null,null,""]
[62,null,null,null,null,null,null,null,null,null,null,null,null,null,null,null,null,null,null,null,null,null,null,null,null,null,null,null,null,null,null,null,null,null,null,null,null,""]
[63,null,null,null,null,null,null,null,null,null,null,null,null,null,null,null,null,null,null,null,null,null,null,null,null,null,null,null,null,null,null,null,null,null,null,null,null,""]
[null,null,null,null,null,null,null,null,null,null,null,null,null,null,null,null,null,null,null,null,null,null,null,null,null,null,null,null,null,null,null,null,null,null,null,null,null,""]
[{"$f":"ROW()-3","v":65},null,null,null,null,null,null,null,null,null,null,null,null,null,null,null,null,null,null,null,null,null,null,null,null,null,null,null,null,null,null,null,null,null,null,null,null,""]
[null,"الــــــــــــــــــــــمـــــــــــــــــــــــــــــــــــجــــــــــــــــــــــــــــــــــــــمــــــــــــــــــــــــــــــــــــــــــــوع",null,null,"المجموع",{"$f":"SUM(F3:F61)","v":40},20,40,0,20,50,-30,30,10,20,0,20,20,-30,40,-10,30,0,0,0,20,30,-31,50,-25,30,-60,0,20,20,0,{"$f":"SUM(F69:AJ69)","v":324}]
[]
[]
[null,null,null,null,null,null,null,null,null,null,null,null,null,null,null,null,null,null,null,null,null,null,null,null,null,null,null,null,null,null,null,null,null,null,"مجموع المكافات",null,{"$f":"SUMIF(AK4:AK68,\">=0\")","v":400}]
[null,null,null,null,null,null,null,null,null,null,null,null,null,null,null,null,null,null,null,null,null,null,null,null,null,null,null,null,null,null,null,null,null,null,"مجموع الخصميات",null,{"$f":"SUMIF(AK4:AK68,\"<=0\")","v":-76}]
[null,null,null,null,{"$f":"[1]المجاميع!C2","v":"2023-08-01"},{"$f":"E74","v":"2023-08-01"},{"$f":"F74+1","v":"2023-08-02"},{"$f":"G74+1","v":"2023-08-03"},"2023-08-04","2023-08-05","2023-08-06","2023-08-07","2023-08-08","2023-08-09","2023-08-10","2023-08-11","2023-08-12","2023-08-13","2023-08-14","2023-08-15","2023-08-16","2023-08-17","2023-08-18","2023-08-19","2023-08-20","2023-08-21","2023-08-22","2023-08-23","2023-08-24","2023-08-25","2023-08-26","2023-08-27","2023-08-28","2023-08-29","2023-08-30","2023-08-31"]
[null,null,null,null,null,{"$f":"TEXT(F74,\"DDD\")","v":"Tue"},{"$f":"TEXT(G74,\"DDD\")","v":"Wed"},"Thu","Fri","Sat","Sun","Mon","Tue","Wed","Thu","Fri","Sat","Sun",{"$f":"TEXT(S74,\"DDD\")","v":"Mon"},"Tue","Wed","Thu","Fri",{"$f":"TEXT(X74,\"DDD\")","v":"Sat"},"Sun","Mon","Tue","Wed","Thu","Fri","Sat","Sun","Mon","Tue","Wed","Thu"]

{"sheet":"مكافآت","index":6,"n_rows":7,"n_cols":7,"rows_kept":7,"cut":false,"hidden":false,"merged":[[0,2,0,4],[0,0,0,1]]}
["2023-08-01",null,"مكافآت الانتاج عن شهر ",null,null,"اختر اسم الشيت او القسم","تجهيز  1"]
["Sl.","File.","اسماء العاملين","المجموع","التوقيع"]
[1,669,"فيصل",100]
[2,994,"سلطان",30]
[3,1224,"احمد 1",20]
[4,2532,"احمد 4",80]
[5,2556,"هثيم",70]

{"sheet":"خصومات","index":7,"n_rows":2,"n_cols":7,"rows_kept":2,"cut":false,"hidden":false,"merged":[[0,0,0,1],[0,2,0,4]]}
["2023-08-01",null,"مكافآت الانتاج عن شهر ",null,null,"اختر اسم الشيت او القسم","تجهيز  1"]
["Sl.","File.","اسماء العاملين","المجموع","التوقيع"]